Cogmind - Beta 15 @@@ ROGUE MODE // 2025.05.20 @ 19:15:14 Player: szymekc Result: Establishing 0b11! Performance ------------- Evolutions (9) 4500 Regions Visited (31) 6200 Robots Destroyed (719) 3595 Value Destroyed (43193) 43193 Prototype IDs (371) 7420 Alien Tech Used (3) 600 Bonus (84895) 84895 TOTAL SCORE: 150403 Bonus ------- Triggered High Security 1500 High Alert Combat Kills 18555 Follower Combat Kills 991 Network Hubs Disabled 200 Met Zhirov 300 Met Warlord at Base 500 MAIN.C Attacked Warlord 500 Warlord Defense Kills 2244 Built Enhanced Grunts 300 Met R17 at Cetus 500 Read Decrypted Archives 300 Met R17 at Research 2000 Met Warlord at Research 2000 Scanned by Researcher 500 Destroyed Superfortress 15000 Destroyed MAIN.C Guards 500 Met MAIN.C 5000 Destroyed MAIN.C Shell 5000 Destroyed MAIN.C 10000 Met Architect 300 Destroyed A8 300 Destroyed A6 400 Destroyed A5 500 Destroyed A4 700 Destroyed A2 1000 Destroyed Architect 15000 Win 3000 Friendly Fire -2195 Cogmind --------- Core Integrity 61/1600 Matter 290/300 Energy 1754/1774 System Corruption 0% Temperature Cool (1) Movement Treading (104) Location 0b11 Command Parts ------- > --- POWER (3) -------- Quantum-Graviton Reactor > --- PROPULSION (6) --- Treaded Siege-Biometal Exoskeleton > --- UTILITY (12) ----- Armored Scrap Engine Concept Thermoelectric Network Concept Antigrav Storage Unit Advanced Terrain Scan Processor Concept Weapon Articulator Experimental Weapon Cycler Centrium Linked Plating Heavy Regenerative Plating (fused) Graphene Brace > --- WEAPON (4) ------- Hypervelocity Linear Accelerator Shotgun Kinetic Neutron Construct/C > --- INVENTORY (25) --- Armored Heavy Treads Desublimator Experimental Cooling System Experimental Energy Well (600) Concept Chromion Battery (800) Concept NT7 Matterbank (750) ST Field Compressor Concept Weapon Articulator Quantum Capacitor Experimental Cloaking Device Concept Antimissile System Concept Matter Streamer Crosscalibrator Transdimensional Reconstructor Subatomic Replicator Hypervelocity Linear Accelerator Concept Rapid Grenade Launcher Concept Tiamat Rocket Array Sigix Broadsword Peak State ------------ > --- POWER ------------ Quantum-Graviton Reactor > --- PROPULSION ------- Treaded Siege-Biometal Exoskeleton > --- UTILITY ---------- Armored Scrap Engine Concept Thermoelectric Network Concept Antigrav Storage Unit Concept Weapon Articulator Experimental Transmission Jammer Heavy Regenerative Plating Concept Energy Mantle Concept Antimissile System Concept Navigation Harness > --- WEAPON ----------- Shotgun Kinetic Neutron Construct/C > --- INVENTORY -------- Experimental Cooling System Concept Chromion Battery Concept NT7 Matterbank Concept Weapon Articulator Quantum Capacitor Concept Cloak Mesh Concept Cloak Mesh Graphene Brace Experimental Shock Absorption System Improved Force Field Concept Matter Streamer Crosscalibrator Transdimensional Reconstructor Transdimensional Reconstructor Subatomic Replicator Concept Plasma Driver Concept Rapid Grenade Launcher Concept Tiamat Rocket Array [Rating: 261] Favorites ----------- Power Constructs Engine Ion Engine Reactor Constructs Propulsion Constructs Treads Constructs Leg Carbon-fiber Leg Wheel Subdweller Monowheel Hover Unit Aerolev Unit Utility Armored Scrap Engine Device Armored Scrap Engine Storage High-capacity Storage Unit Processor Experimental Targeting Computer Hackware Experimental Hacking Suite Protection Heavy Regenerative Plating Weapon Constructs Energy Gun EM Pulse Gun Energy Cannon Subdweller Beam Cannon Ballistic Gun Light Assault Rifle Ballistic Cannon Constructs Launcher Concept Rapid Grenade Launcher Special Weapon Mining Laser Impact Weapon Powered Hammer Slashing Weapon Mining Claw Build | -11 -10 -10 -10 -8 -8 -8 -6 -6 -6 -6 -6 -5 -5 -5 -5 -5 -5 -4 -4 -4 -4 -4 -3 -3 -3 -2 -2 -2 -1 -1 -1 ------- Run | Yrd Mat Min Sub Mat Sto Rec Fac Ext Cet Arc Hub Fac Was Fac Upp Upp Zhi Pro Fac Upp Upp War Pro Res Qua Res Tes Frg Acc Com Ac0 Slots Evolved 18 | . . . . 4 . . 4 . . . . 2 . . . . . . 2 . . . . 2 . 2 . . 2 . . Power 2 | . . . . . . . . . . . . 1 . . . . . . . . . . . . . 1 . . . . . Propulsion 4 | . . . . 3 . . . . . . . . . . . . . . . . . . . . . 1 . . . . . Utility 10 | . . . . 1 . . 3 . . . . . . . . . . . 2 . . . . 2 . . . . 2 . . Weapon 2 | . . . . . . . 1 . . . . 1 . . . . . . . . . . . . . . . . . . . Parts Attached 214 | 7 6 2 9 18 1 2 22 3 1 1 1 1 4 11 1 . 1 . 4 . 2 12 . 13 3 21 17 33 5 4 9 Power 6 | 1 1 . . 2 . . . . . . . . . 2 . . . . . . . . . . . . . . . . . Engine 6 | 1 1 . . 2 . . . . . . . . . 2 . . . . . . . . . . . . . . . . . Core . | . . . . . . . . . . . . . . . . . . . . . . . . . . . . . . . . Reactor . | . . . . . . . . . . . . . . . . . . . . . . . . . . . . . . . . Propulsion 17 | 2 . . 3 10 . 1 . . . . . . . . . . . . . . . . . . . . . 1 . . . Treads 12 | 2 . . 2 8 . . . . . . . . . . . . . . . . . . . . . . . . . . . Leg 2 | . . . . 1 . . . . . . . . . . . . . . . . . . . . . . . 1 . . . Wheel 2 | . . . 1 . . 1 . . . . . . . . . . . . . . . . . . . . . . . . . Hover 1 | . . . . 1 . . . . . . . . . . . . . . . . . . . . . . . . . . . Flight . | . . . . . . . . . . . . . . . . . . . . . . . . . . . . . . . . Utility 134 | 2 1 1 2 3 . 1 14 3 1 1 1 . 2 7 1 . 1 . 4 . 1 9 . 13 2 14 11 23 5 4 7 Device 87 | 1 . 1 1 2 . 1 12 2 . . . . 2 4 . . 1 . 3 . 1 5 . 6 1 10 6 14 5 3 6 Storage 12 | 1 1 . 1 1 . . . . . . . . . . . . . . . . . . . 3 . . 2 3 . . . Processor 21 | . . . . . . . 2 1 . . . . . 2 . . . . 1 . . 4 . 2 . 4 1 3 . 1 . Hackware 6 | . . . . . . . . . . . . . . 1 . . . . . . . . . 2 1 . . 2 . . . Protection 8 | . . . . . . . . . 1 1 1 . . . 1 . . . . . . . . . . . 2 1 . . 1 Artifact . | . . . . . . . . . . . . . . . . . . . . . . . . . . . . . . . . Weapon 57 | 2 4 1 4 3 1 . 8 . . . . 1 2 2 . . . . . . 1 3 . . 1 7 6 9 . . 2 Energy Gun 15 | . 1 . 1 . 1 . 1 . . . . . . . . . . . . . . 3 . . . 2 2 4 . . . Energy Cannon 11 | . . . 1 1 . . 2 . . . . . 1 1 . . . . . . . . . . . 2 2 1 . . . Ballistic Gun 8 | 2 . 1 1 1 . . . . . . . . . . . . . . . . . . . . . 1 2 . . . . Ballistic Cannon 4 | . . . . . . . . . . . . . . . . . . . . . . . . . . 1 . 2 . . 1 Launcher 12 | . 1 . . 1 . . 3 . . . . . 1 . . . . . . . 1 . . . 1 1 . 2 . . 1 Special Weapon 1 | . 1 . . . . . . . . . . . . . . . . . . . . . . . . . . . . . . Impact Weapon 5 | . . . 1 . . . 2 . . . . 1 . 1 . . . . . . . . . . . . . . . . . Slashing Weapon 1 | . 1 . . . . . . . . . . . . . . . . . . . . . . . . . . . . . . Piercing Weapon . | . . . . . . . . . . . . . . . . . . . . . . . . . . . . . . . . Special Melee Weapon . | . . . . . . . . . . . . . . . . . . . . . . . . . . . . . . . . Unidentified Prototypes 74 | . . 1 . 3 1 1 2 . 1 . . . 4 3 . . 2 . . . . 10 . 5 1 9 11 17 . . 3 Corrupted Parts 1 | . . . 1 . . . . . . . . . . . . . . . . . . . . . . . . . . . . System Corruption 1 | . . . 1 . . . . . . . . . . . . . . . . . . . . . . . . . . . . Parts Lost 22 | . . . 2 . 1 1 1 . . . . . . 1 1 . . . . . 1 . . 1 . 4 1 3 . 2 3 Power 1 | . . . . . . . . . . . . . . . . . . . . . . . . . . . . . . . 1 Propulsion 1 | . . . 1 . . . . . . . . . . . . . . . . . . . . . . . . . . . . Utility 18 | . . . . . 1 1 1 . . . . . . 1 1 . . . . . 1 . . 1 . 4 1 3 . 1 2 Weapon 2 | . . . 1 . . . . . . . . . . . . . . . . . . . . . . . . . . 1 . Highest Loss Streak 3 | . . . 1 . 1 1 1 . . . . . . 1 1 . . . . . 1 . . 1 . 3 1 1 . 2 1 To Critical Strikes 1 | . . . 1 . . . . . . . . . . . . . . . . . . . . . . . . . . . . Average Backups 17 | 1 6 13 15 16 16 7 12 18 19 18 19 20 20 19 19 19 19 19 17 20 19 19 20 23 24 23 21 21 19 21 20 Power . | . . . . . . . . . . . . . . . 1 1 . . . . . . . . . . . . . 1 . Propulsion 2 | . . 3 5 5 10 3 1 6 5 5 3 3 3 1 . . . . . . . . . 1 1 . . . . 2 1 Utility 10 | . . 4 3 2 . 1 7 9 11 12 14 16 16 15 13 12 12 13 14 16 15 15 14 15 15 15 13 13 12 11 12 Weapon 4 | 1 4 6 6 8 6 3 3 2 2 1 1 1 1 2 4 5 6 5 2 3 3 3 5 5 6 6 6 5 3 4 3 Tool/Special . | . . . . . . . . . . . . . . . . . . . . . . . . . . . . . . . . Unused Backups 80 | . 1 . 2 8 . 9 3 1 5 . 3 . . 4 1 2 1 4 1 . . 5 . 3 2 3 4 4 . 2 12 Power 3 | . 1 . . . . . . . . . . . . . . . . . . . . . . . . 1 . . . . 1 Propulsion 21 | . . . . 2 . 6 . 1 1 . 3 . . 2 1 . . . . . . . . 1 1 . . . . . 3 Utility 25 | . . . 1 1 . . 1 . 2 . . . . 2 . 1 1 . . . . 4 . 1 1 2 3 2 . . 3 Weapon 29 | . . . 1 5 . 3 2 . 2 . . . . . . 1 . 4 1 . . 1 . 1 . . 1 2 . 2 3 Tool/Special 2 | . . . . . . . . . . . . . . . . . . . . . . . . . . . . . . . 2 Average Slot Usage (%) 58 | . 100 100 97 96 99 53 59 60 53 53 53 49 52 53 52 52 52 52 56 57 57 57 57 60 61 53 53 48 47 43 51 Engine 3 | . 14 14 14 9 9 8 2 . . . . . . 2 . . 1 5 3 . . . . . . . . . . . . Reactor 2 | . . . . . . . . . 3 6 6 5 5 3 . . . . 1 5 5 2 5 4 4 4 4 4 4 4 4 Treads 5 | . 28 28 20 41 45 12 1 . . . 5 5 5 5 . . . 1 2 . . . . . . 1 . . 2 . 1 Leg 1 | . . . . . . . 1 6 6 . . . . . . . . 2 . . . 5 5 2 3 2 . . 1 1 . Hover 1 | . . . . . . . . . . 5 . . . . . . . . . . . . . 1 . . 4 3 . 2 2 Device 16 | . 14 14 14 17 17 9 24 21 19 6 12 5 12 20 16 12 11 11 17 21 21 16 10 18 16 15 17 17 27 23 25 Storage 6 | . 14 14 14 9 9 9 6 6 6 6 6 5 5 5 5 5 5 5 5 5 5 5 5 4 4 4 4 4 4 4 4 Processor 4 | . . . . . . . . 4 6 6 6 5 5 2 5 5 5 5 9 10 10 13 21 19 19 15 12 5 . . 4 Protection 2 | . . . . . . . . . . 12 6 11 3 . . 4 5 5 3 . . . . . . . 1 4 4 4 4 Energy Cannon 3 | . . . 2 8 7 5 5 4 . . 2 5 5 2 4 5 5 3 5 5 . . . 2 1 2 6 3 4 2 1 Ballistic Gun 1 | . 20 14 11 . . . . . . . . . . . . . . . . . . . . . . . . . . . . Ballistic Cannon 1 | . . . . . . 3 2 1 6 6 3 . . 2 . . . 1 . . 5 4 5 1 2 1 . 1 . 1 3 Impact Weapon 2 | . . . 5 9 9 1 3 6 . . . 2 4 5 5 5 5 4 5 5 4 5 3 3 4 1 . . . . . Peak Build Rating 261 | 7 8 14 24 37 43 51 90 92 99 103 106 91 98 110 110 111 114 119 135 135 139 153 156 177 179 197 207 248 261 247 260 Average Rating 122 | 5 7 8 17 28 38 43 76 88 91 98 98 89 91 92 109 110 111 113 129 135 135 143 153 171 173 182 197 219 247 217 239 On Entrance 110 | . 7 8 9 18 35 42 49 88 92 99 98 88 91 87 110 110 111 112 117 135 135 136 153 153 175 172 189 197 248 247 233 Naked Turns . | . . . . . . . . . . . . . . . . . . . . . . . . . . . . . . . . Heaviest Build 211 | 11 29 30 60 63 63 62 73 66 70 76 83 86 92 87 89 84 84 96 98 98 108 100 88 142 153 181 211 210 154 160 176 Greatest Support 313 | 40 40 40 40 100 100 100 166 166 131 131 205 183 183 183 183 183 183 234 234 168 168 184 184 218 214 313 313 313 272 232 242 Greatest Overweight (x) 25 | . . . 2 . . 1 1 . . 25 . . . . . . . . . . . . . . . . . 1 . . 1 Average Overweight (x) . | . . . 1 . . . . . . 15 . . . . . . . . . . . . . . . . . . . . . Largest Inventory Capacity 25 | 8 15 15 20 20 20 20 20 20 20 20 20 20 20 20 20 20 20 20 20 20 20 20 20 25 25 25 25 25 25 25 25 Average Capacity 21 | 6 12 15 18 20 20 20 20 20 20 20 20 20 20 20 20 20 20 20 20 20 20 20 20 24 25 25 25 25 25 25 25 Most Carried 25 | 2 11 14 20 20 20 20 20 20 20 18 20 20 20 20 20 20 20 20 20 20 20 20 20 25 25 25 25 25 24 25 25 Average Carried 19 | . 6 13 18 19 19 10 16 19 19 18 19 20 20 19 19 19 19 19 18 20 19 19 20 23 24 24 24 23 19 24 23 Final Capacity 25 | 8 15 15 20 20 20 20 20 20 20 20 20 20 20 20 20 20 20 20 20 20 20 20 20 25 25 25 25 25 25 25 25 Final Carried 25 | 2 11 14 20 20 20 15 20 20 18 18 20 20 20 19 19 20 20 16 20 20 19 20 20 25 25 24 23 19 24 24 22 Scrap Engine Consumption 620 | . . . . . . 81 100 21 13 . 15 . 18 27 3 6 3 18 10 5 5 21 . 12 14 37 7 69 8 116 11 Constructs Created 10 | . . . . . . 3 . . 1 . . . . . . . . . . . . . . . . . . 1 . 4 1 Constructs Modified 285 | . . . . . . 31 47 11 5 2 6 . 6 7 10 1 2 10 5 2 2 6 . 9 8 18 5 32 4 46 10 Class Distribution -------------------- 74% | Construct 14% | Mutant 5% | Infiltrator-Construct 4% | Commander-Construct Dominant Class ---------------- Mutant | -10/Materials Mutant | -10/Mines Mutant | -10/Subcaves Mutant | -8/Materials Mutant | -8/Storage Construct | -8/Recycling Construct | -6/Factory Commander-Construct | -6/Extension Commander-Construct | -6/Cetus Construct | -6/Archives Construct | -6/Hub_04(d) Construct | -5/Factory Construct | -5/Waste Construct | -5/Factory Construct | -5/Upper Caves Construct | -5/Upper Caves Construct | -5/Zhirov Construct | -4/Proximity Caves Construct | -4/Factory Construct | -4/Upper Caves Construct | -4/Upper Caves Commander-Construct | -4/Warlord Construct | -3/Proximity Caves Construct | -3/Research Construct | -3/Quarantine Construct | -2/Research Construct | -2/Testing Construct | -2/Protoforge Construct | -1/Access Construct | -1/Command Construct | -1/Access_0 Resources | -11 -10 -10 -10 -8 -8 -8 -6 -6 -6 -6 -6 -5 -5 -5 -5 -5 -5 -4 -4 -4 -4 -4 -3 -3 -3 -2 -2 -2 -1 -1 -1 ----------- Run | Yrd Mat Min Sub Mat Sto Rec Fac Ext Cet Arc Hub Fac Was Fac Upp Upp Zhi Pro Fac Upp Upp War Pro Res Qua Res Tes Frg Acc Com Ac0 Matter Collected 14428 | 210 161 172 277 320 152 277 891 142 24 . 227 . 378 231 56 58 58 94 74 27 133 294 93 1398 584 1035 730 3708 128 138 2358 Remotely 618 | . . . . . . . . . . . . . . . . . . . . . . . . . . . . 10 . . 608 Salvage Created 44751 | 55 405 149 496 664 368 1064 4851 3033 422 4 960 . 901 1757 714 911 237 801 769 520 723 1020 502 1638 444 1449 1863 11366 1620 1247 3798 Parts 1881 | 7 34 12 28 31 22 26 170 116 12 2 49 . 15 59 17 43 3 39 29 16 21 44 24 71 30 59 108 421 46 23 304 Haulers Intercepted 25 | . 2 . . 2 2 . 7 . . . 2 . . 1 . . . . . . . . . 4 . 2 1 . 2 . . Recyclers Shooed 11 | 3 1 1 . . . . 3 . . . . . . 1 . . . . 1 . . . . 1 . . . . . . . Parts Field Recycled . | . . . . . . . . . . . . . . . . . . . . . . . . . . . . . . . . Retrieved Matter . | . . . . . . . . . . . . . . . . . . . . . . . . . . . . . . . . Parts Self-Destructed 142 | . . . 9 . . . . . . . . . . . 17 29 3 25 . 23 17 . 19 . . . . . . . . Prevented 13 | . . . . . . . . . . . . . . . . . . 4 . 4 . . 5 . . . . . . . . Kills | -11 -10 -10 -10 -8 -8 -8 -6 -6 -6 -6 -6 -5 -5 -5 -5 -5 -5 -4 -4 -4 -4 -4 -3 -3 -3 -2 -2 -2 -1 -1 -1 ------- Run | Yrd Mat Min Sub Mat Sto Rec Fac Ext Cet Arc Hub Fac Was Fac Upp Upp Zhi Pro Fac Upp Upp War Pro Res Qua Res Tes Frg Acc Com Ac0 Combat Hostiles Destroyed 585 | . 15 3 10 11 11 8 62 38 5 . 13 . 1 32 10 16 . 15 6 5 11 15 8 16 5 16 25 167 18 8 35 Melee 3 | . . . 1 . 1 . . . . . . . . . . . . . . . . . . . . . . 1 . . . Guns 9 | . 1 . 8 . . . . . . . . . . . . . . . . . . . . . . . . . . . . Cannons 436 | . . . . 7 3 6 43 34 5 . 12 . 1 19 10 10 . 9 6 5 8 15 6 14 5 16 25 118 18 8 33 AOE 107 | . 14 3 . 4 7 . 9 . . . 1 . . 13 . 5 . 5 . . 3 . 2 2 . . . 37 . . 2 Classes Destroyed 36 | 1 6 1 2 2 . . 6 1 . . 1 . 1 . 1 2 . . . 1 . 2 1 . . . 1 7 . . . Worker 24 | . 1 2 . 1 . . 4 . . . 3 . . . . . . . 1 . . . . 4 1 . 4 2 . 1 . Builder 18 | . 1 . . . . 2 4 1 . . 2 . . . . . . . 2 . . . . 1 . . 3 2 . . . Tunneler 6 | 3 1 1 . . . . 1 . . . . . . . . . . . . . . . . . . . . . . . . Hauler 25 | . 2 . . 2 2 . 7 . . . 2 . . 1 . . . . . . . . . 4 . 2 1 . 2 . . Recycler 20 | . . 1 . 1 . 3 5 4 . . . . . 1 . . . . 2 . . . . 1 . . 1 . 1 . . Carrier 4 | . . . . . . . . . . . . . . . . . . . . . . . . . . . . 4 . . . Minesweeper 2 | . . . . . . . . . . . . . . . . 1 . . . 1 . . . . . . . . . . . Mechanic 8 | . . . . . . . 1 . . . . . . . . . . . . . . . . . . . . 7 . . . Operator 3 | . . . . . . . . . . . 1 . . . . . . . . . . . . 1 . 1 . . . . . Drone 4 | . . . . . . . . . . . . . . . . . . . . . . . 2 . . . . 2 . . . Watcher 18 | . 1 . . . 1 . 2 1 1 . . . . . . . . . . . . . . 2 2 4 . 2 2 . . Swarmer 76 | . 6 3 . . 4 . 13 . . . 5 . . 5 4 5 . 5 . . 4 1 . 5 . 6 10 . . . . Saboteur 3 | . . . . . . . . . . . . . . . . . . . . . . . . . . . . 3 . . . Grunt 191 | . 9 . . 5 6 . 25 15 . . 3 . . 16 6 8 . 7 4 2 3 2 3 6 . . . 63 8 . . Brawler 21 | . . . . . . . 4 1 . . . . . 3 . . . . . . . 1 1 . . . . 11 . . . Duelist 15 | . . . . . . . 4 2 . . . . . . . . . . . . . 1 . . . . . 8 . . . Protector 9 | . . . . . . . 1 . . . . . . . . . . . . . . 3 . . . . . 5 . . . Researcher 6 | . . . . . . . . . . . . . . . . . . . . . . . . . . . . 6 . . . Sentry 54 | . . . . 4 1 1 5 10 . . 5 . . 2 . . . 1 . 1 1 . . 4 . 4 . 12 2 1 . Demolisher 2 | . . . . . . . . 1 . . . . . . . . . . . . . . . . . . . . 1 . . Specialist 2 | . . . . . . . . . . . . . . . . . . . . . . . . . . . 2 . . . . Hunter 42 | . . . . 2 . . 4 3 . . . . . 2 . 2 . . . 2 2 3 . 1 3 2 4 10 2 . . Programmer 44 | . . . . . . . 5 . . . . . . 4 . . . 2 2 . 1 1 2 . 2 1 8 13 2 1 . Heavy 1 | . . . . . . . . . . . . . . . . . . . . . . . . . . . . . 1 . . Behemoth 5 | . . . . . . . 1 1 . . . . . . . . . . . . . . . . . . . 1 2 . . Compactor 1 | . . . . . . . . . . . . . 1 . . . . . . . . . . . . . . . . . . Cetus Guard 5 | . . . . . . . . . 5 . . . . . . . . . . . . . . . . . . . . . . M Guard 2 | . . . . . . . . . . . . . . . . . . . . . . . . . . . . . . 2 . Enhanced Grunt 20 | . . . . . . . . . . . . . . . . . . . . . . . . . . . . . . . 20 Enhanced Sentry 1 | . . . . . . . . . . . . . . . . . . . . . . . . . . . . . . . 1 Enhanced Hunter 8 | . . . . . . . . . . . . . . . . . . . . . . . . . . . . . . . 8 Hotshot 13 | . . . . . . . . . . . . . . . . . . . . . . . . . . . . 13 . . . Decapitator 9 | . . . . . . . . . . . . . . . . . . . . . . . . . . . . 9 . . . Immortal 6 | . . . . . . . . . . . . . . . . . . . . . . . . . . . . 6 . . . Overlord 1 | . . . . . . . . . . . . . . . . . . . . . . . . . . . . 1 . . . Combat Programmer 2 | . . . . . . . . . . . . . . . . . . . . . . . . . . . . . . 2 . Investigator 1 | . . . . . . . . . . . . . . . . . . . . . . . . . . . . 1 . . . Striker 3 | . . . . . . . . . . . . . . . . . . . . . . 1 . . . 1 . 1 . . . Executioner 5 | . . . . . . . . . . . . . . . . . . . . . . 2 . . . 2 . 1 . . . Alpha 7 2 | . . . . . . . . . . . . . . . . . . . . . . . . . . . . 2 . . . V-Series 5 | . . . . . . . . . . . . . . . . . . . . . . . . . . . . 5 . . . Protovariant G 1 | . . . . . . . . . . . . . . . . . . . . . . . . . . . 1 . . . . Cobbler 1 | . . . 1 . . . . . . . . . . . . . . . . . . . . . . . . . . . . Subdweller 17 | . . . 10 . . 7 . . . . . . . . . . . . . . . . . . . . . . . . . Packrat 1 | . . . . . . . . . . . . . . . . 1 . . . . . . . . . . . . . . . Samaritan 2 | . . . . . . . . . . . . . . . 1 . . . . 1 . . . . . . . . . . . Tinkerer 2 | . . . . . . . . . . . . . . . . . . . . 1 . . . . . . . 1 . . . Thug 2 | . . . . . . . . 1 . . . . . . . . . . . . . 1 . . . . . . . . . Butcher 2 | . . . . . . . . 2 . . . . . . . . . . . . . . . . . . . . . . . Guerrilla 3 | . . . . . . . . 3 . . . . . . . . . . . . . . . . . . . . . . . Mutant 1 | . . . . . . . . . . . . . . . . 1 . . . . . . . . . . . . . . . Best Kill Streak 20 | 1 9 3 3 4 5 1 9 8 3 . 6 . 1 13 4 5 . 5 7 3 5 4 7 9 2 4 10 20 13 4 9 Combat Bots Only 17 | . 6 3 3 3 4 1 7 7 3 . 4 . 1 13 4 5 . 5 4 2 5 4 7 8 2 4 9 17 11 4 9 Max Kills in Single Turn 8 | 1 3 2 1 2 3 1 3 1 1 . 6 . 1 8 1 3 . 2 2 1 2 1 1 2 1 1 2 8 2 1 2 Gunslinging . | . . . . . . . . . . . . . . . . . . . . . . . . . . . . . . . . Exploded 8 | . 3 2 . 1 2 . 3 . . . 1 . . 8 . 3 . 2 . . 2 . 1 2 . . . 6 . . 2 Melee 1 | . . . 1 . 1 . . . . . . . . . . . . . . . . . . . . . . 1 . . . Uniques/NPCs Destroyed 9 | . . . . . . . . . . . . . . . . . . . . . . . . . . . . 1 . 2 6 Superfortress (-2/Protoforge) MAIN.C Shell (-1/Command) MAIN.C (-1/Command) A8 (-1/Access_0) A6 (-1/Access_0) A2 (-1/Access_0) A5 (-1/Access_0) Architect (-1/Access_0) A4 (-1/Access_0) Combat | -11 -10 -10 -10 -8 -8 -8 -6 -6 -6 -6 -6 -5 -5 -5 -5 -5 -5 -4 -4 -4 -4 -4 -3 -3 -3 -2 -2 -2 -1 -1 -1 -------- Run | Yrd Mat Min Sub Mat Sto Rec Fac Ext Cet Arc Hub Fac Was Fac Upp Upp Zhi Pro Fac Upp Upp War Pro Res Qua Res Tes Frg Acc Com Ac0 Hostile Shots Fired 3232 | . 37 4 16 60 54 44 333 177 25 5 129 . . 102 30 27 . 83 34 30 71 26 19 65 48 193 102 548 46 97 827 Missed 1214 | . 9 2 5 25 10 15 123 72 7 3 51 . . 44 9 10 . 44 15 9 29 13 9 24 24 88 35 183 14 31 311 Intercepted 7 | . . . . . . . . . . . . . . . . . . . . . . . . . . . . . 1 6 . Hits 2018 | . 28 2 11 35 44 29 210 105 18 2 78 . . 58 21 17 . 39 19 21 42 13 10 41 24 105 67 365 32 66 516 Melee 31 | . . . . . . . 5 . . . . . . . . 2 . . . . . . . . . . . 17 . . 7 Projectile 1987 | . 28 2 11 35 44 29 205 105 18 2 78 . . 58 21 15 . 39 19 21 42 13 10 41 24 105 67 348 32 66 509 AOE 11 | . . . . . . . . 1 . . . . . . . . . . . . . 3 . . . . . 6 1 . . Critical Strikes 126 | . 1 . 2 1 2 1 9 3 3 . . . . 1 . 1 . 3 2 2 1 1 1 4 1 2 3 41 1 5 35 Actively Blocked 35 | . . . . . . . . . . . . . . . . . . . . . . . . . . . . 19 . 1 15 Part Disruptions 2 | . . . . . . . . . . . . . . . . . . . . . . . . . . . . . . 2 . Damage Taken 34261 | . 375 50 421 516 632 575 3434 1402 369 289 941 . . 1114 332 340 . 776 278 357 430 359 296 1032 479 2220 1050 5604 402 1396 8792 Core 3216 | . 64 6 106 68 38 42 297 80 64 . 51 . . 111 22 35 . 16 44 . 41 22 21 89 33 186 59 265 9 108 1339 Absorbed by Shields 16421 | . . . . . . . . 28 187 . . . . . . . . . 88 136 256 141 . 85 . 673 764 5142 386 1305 7230 Ignored by Resistances 28 | . . . . . . . . . . . . . . . 28 . . . . . . . . . . . . . . . . Regen/Repaired (Parts) 21195 | . . . . . . 165 2525 965 302 389 650 . 94 670 244 106 19 546 32 271 252 646 . 1096 242 1683 362 4227 708 1147 3854 Core Remaining (%) 63 | 100 . . 29 . . 73 . . . . 42 . . . . . . 81 . . . . 88 . 90 . . 64 . . 3 Volleys Fired 2130 | 16 49 14 27 47 37 69 181 105 24 8 47 . 25 65 29 25 4 31 29 27 36 76 22 49 26 87 83 424 33 72 363 Largest 2 | 2 2 1 2 1 1 1 2 1 1 1 1 . 1 1 1 1 1 1 1 1 1 1 1 1 1 1 2 2 1 1 2 Hottest 589 | 40 100 40 90 80 80 194 326 128 89 64 96 . 247 247 67 67 67 79 166 166 166 166 166 186 235 235 253 299 159 471 589 Shots Fired 2205 | 32 82 14 44 47 36 68 200 105 24 8 47 . 25 65 29 25 4 31 29 27 36 76 22 49 26 82 84 419 33 72 364 Gun 148 | 32 66 12 37 . . . . . . . . . . . . . . . . . . . . . . . . 1 . . . Cannon 1968 | . . . 7 42 28 68 180 105 24 8 47 . 25 65 29 23 4 28 29 27 32 76 19 47 26 82 84 398 33 72 360 Launcher 86 | . 13 2 . 5 8 . 20 . . . . . . . . 2 . 3 . . 4 . 3 2 . . . 20 . . 4 Special 3 | . 3 . . . . . . . . . . . . . . . . . . . . . . . . . . . . . . Kinetic 912 | 32 39 . 18 . . 31 14 4 . 8 37 . 23 . . . . . 23 27 32 61 19 46 26 64 3 188 . 54 163 Thermal 1028 | . 3 . 23 42 28 24 146 64 24 . 10 . 2 65 29 23 4 25 6 . . 15 . 1 . 18 79 149 33 18 197 Explosive 74 | . 13 2 . 5 8 . 8 . . . . . . . . 2 . 3 . . 4 . 3 2 . . . 20 . . 4 Electromagnetic 129 | . 27 12 3 . . 13 32 37 . . . . . . . . . 3 . . . . . . . . 2 . . . . Entropic 62 | . . . . . . . . . . . . . . . . . . . . . . . . . . . . 62 . . . Robot Hit Streak 35 | 4 15 2 10 14 6 17 15 14 9 4 6 . 8 9 11 27 9 16 11 13 5 21 7 13 8 14 7 35 17 29 16 Robot Miss Streak 5 | 5 3 4 3 2 3 3 4 4 2 3 3 . 4 4 2 1 . 2 3 1 2 3 1 3 3 3 4 5 1 1 4 Penetration Max 2 | . . . . . . . . . . 1 1 . . . . . . . 1 . . 1 . 1 . . . 2 . . 1 Secondary Targets 2 | . 1 . 1 . . . . . . . . . . . . . . . . . . . . . . . . . . . . Max Gunslinging Chain 1 | . 1 . 1 . . . . . . . . . . . . . . . . . . . . . . . . . . . . Capacitor 290 | . . . . . . . . . . . . . . . . . . . . . . . . . . . . 117 26 7 140 Shots Hit Robots 1485 | 19 47 6 34 37 21 56 159 70 19 4 28 . 15 45 22 21 4 19 18 19 21 36 15 37 14 67 40 255 29 42 266 Core Hits 948 | 6 37 9 15 17 21 19 103 38 7 . 25 . 5 32 9 17 3 13 7 7 24 16 7 28 6 29 25 272 21 16 114 Critical Kills 38 | . . . 1 . . . 6 1 2 . 1 . 2 5 . 1 . 1 . 1 . . . . 1 1 . 11 . . 4 Critical Parts Destroyed 32 | 1 . . . 1 1 1 1 2 3 . 3 . . 8 . . . . . 1 . . . . 2 . . . . . 8 Critical Strikes 88 | 1 1 . 2 1 1 1 7 3 8 . 4 . 3 13 . 1 . 1 . 2 . . . . 4 1 1 13 . . 20 Burn 1 | . . . . . . . . . . . . . . . . . . . . . . . . . . . 1 . . . . Meltdown 21 | . . . . . . . 6 1 . . . . . . . 1 . 1 . . . . . . . 1 . 11 . . . Destroy 51 | 1 . . 1 . . . . 2 8 . 4 . 3 12 . . . . . . . . . . 3 . . 1 . . 16 Blast 6 | . . . . . . . . . . . . . . . . . . . . . . . . . 1 . . 1 . . 4 Corrupt 1 | . 1 . . . . . . . . . . . . . . . . . . . . . . . . . . . . . . Smash 8 | . . . 1 1 1 1 1 . . . . . . 1 . . . . . 2 . . . . . . . . . . . Melee Attacks 104 | . 5 . 23 9 5 6 19 . . . . . . 3 . . . . 3 3 1 . . 6 13 8 . . . . . Impact 99 | . . . 23 9 5 6 19 . . . . . . 3 . . . . 3 3 1 . . 6 13 8 . . . . . Slashing 5 | . 5 . . . . . . . . . . . . . . . . . . . . . . . . . . . . . . Piercing . | . . . . . . . . . . . . . . . . . . . . . . . . . . . . . . . . Sneak Attacks 21 | . . . 2 3 2 1 6 . . . . . . 2 . . . . . 1 . . . 3 . 1 . . . . . Combat Hostiles 1 | . . . . . . 1 . . . . . . . . . . . . . . . . . . . . . . . . . Follow-up Attacks . | . . . . . . . . . . . . . . . . . . . . . . . . . . . . . . . . Damage Inflicted 215658 | 156 1665 285 879 1669 1366 1767 11611 5236 1227 516 2863 . 1558 6512 2387 3058 469 2790 2357 2221 2716 5626 1933 4423 1518 5166 7210 61625 7176 10322 57351 Guns 1193 | 156 479 80 478 . . . . . . . . . . . . . . . . . . . . . . . . . . . . Cannons 190727 | . . . 85 881 349 1600 8936 5236 1227 516 2153 . 1558 4219 2387 2715 469 2422 2357 1998 2013 5552 1598 3876 1351 4936 7064 52210 7176 10322 55521 Explosions 20943 | . 1181 204 . 444 780 . 2057 . . . 710 . . 2146 . 343 . 368 . . 703 74 335 250 . 60 48 9410 . . 1830 Melee 2613 | . . . 316 344 237 156 601 . . . . . . 147 . . . . . 223 . . . 297 122 170 . . . . . Ramming 182 | . 5 1 . . . 11 17 . . . . . . . . . . . . . . . . . 45 . 98 5 . . . Kinetic 74769 | 156 192 . 223 . . 851 533 57 . 516 1544 . 1314 . . . . . 2241 1998 2013 3968 1598 3800 1351 3908 190 19210 . 9539 19567 Thermal 101770 | . 219 75 317 881 349 538 8346 3320 1227 . 609 . 244 4983 2387 2715 469 2257 116 . . 1658 101 76 . 1028 6876 18827 7176 783 36193 Explosive 17322 | . 962 129 . 444 780 . 666 . . . . . . 1382 . 343 . 368 . . 703 . 234 250 . 60 . 9410 . . 1591 Electromagnetic 4829 | . 287 80 23 . . 211 1448 1859 . . 710 . . . . . . 165 . . . . . . . . 46 . . . . Impact 2613 | . . . 316 344 237 156 601 . . . . . . 147 . . . . . 223 . . . 297 122 170 . . . . . Slashing . | . . . . . . . . . . . . . . . . . . . . . . . . . . . . . . . . Piercing . | . . . . . . . . . . . . . . . . . . . . . . . . . . . . . . . . Entropic 14173 | . . . . . . . . . . . . . . . . . . . . . . . . . . . . 14173 . . . Highest Corruption 16 | . . . 1 . 1 1 1 1 1 1 2 . . 1 1 1 1 3 . . . 2 2 5 10 16 9 16 2 2 5 Average Corruption 3 | . . . 1 . 1 1 1 1 1 1 1 . . 1 1 1 1 2 . . . 1 2 5 7 14 8 6 1 1 4 Corruption Purged 28 | . . . . . . . . . . . . . . . . . . . . . . . . . . 7 10 . 2 4 5 Corruption Blocked . | . . . . . . . . . . . . . . . . . . . . . . . . . . . . . . . . Effects 377 | . . . 22 . . 33 8 7 1 20 5 . . 5 8 5 4 16 . . . 3 1 22 25 55 25 90 4 2 16 Message Errors 88 | . . . 5 . . 10 2 3 . 6 1 . . 2 4 2 1 2 . . . . . 4 6 11 3 23 1 1 1 Matter Fused 100 | . . . 3 . . 9 1 1 1 8 1 . . 3 1 . 2 3 . . . 2 . 7 7 17 6 22 1 1 4 Heat Flow Errors 54 | . . . 5 . . 4 4 . . 2 . . . . 2 1 . 5 . . . . . 2 3 7 4 10 . . 5 Energy Discharges 38 | . . . . . . 5 1 . . 2 1 . . . 1 . 1 4 . . . . . 3 5 4 3 6 . . 2 Parts Rejected 4 | . . . . . . . . . . . 1 . . . . . . 1 . . . . . . . 2 . . . . . Parts Fused 3 | . . . . . . 1 . . . . . . . . . . . . . . . . . . . . . 2 . . . Data Loss (minor) 41 | . . . 5 . . 2 . . . 2 1 . . . . 1 . . . . . . 1 3 3 5 5 9 2 . 2 Data Loss (major) 20 | . . . 3 . . . . 2 . . . . . . . . . . . . . 1 . 3 1 2 3 5 . . . Misfires 5 | . . . 1 . . . . . . . . . . . . . . . . . . . . . . . . 3 . . 1 Alerts 5 | . . . . . . 1 . 1 . . . . . . . 1 . 1 . . . . . . . . 1 . . . . Misdirections 2 | . . . . . . . . . . . . . . . . . . . . . . . . . . 2 . . . . . Weapon Failures 17 | . . . . . . 1 . . . . . . . . . . . . . . . . . . . 5 . 10 . . 1 Overload Shots . | . . . . . . . . . . . . . . . . . . . . . . . . . . . . . . . . Overflow Damage 26202 | . . . 9 127 153 105 824 319 77 52 116 . 250 823 679 671 113 467 662 474 447 1129 542 375 263 505 1860 7934 1071 1088 5067 Projectiles 24403 | . . . . 8 . 74 617 319 77 52 82 . 250 589 679 670 113 467 662 354 441 1129 408 211 225 391 1825 7534 1071 1088 5067 Explosions 711 | . . . . 5 . . . . . . 34 . . 117 . 1 . . . . 6 . 134 . . 7 7 400 . . . Melee 1088 | . . . 9 114 153 31 207 . . . . . . 117 . . . . . 120 . . . 164 38 107 28 . . . . Knockbacks 242 | . . . 1 . . 6 8 . . 7 6 . 1 2 . . . . 6 3 5 14 7 9 5 13 2 43 . 14 90 Impact 9 | . . . 1 . . . 4 . . . . . . 2 . . . . . . . . . 1 1 . . . . . . Kinetic 216 | . . . . . . 6 3 . . 7 4 . 1 . . . . . 4 3 5 11 5 7 4 13 1 38 . 14 90 Secondary 17 | . . . . . . . 1 . . . 2 . . . . . . . 2 . . 3 2 1 . . 1 5 . . . Self-Inflicted Damage 1460 | . 64 34 . 4 16 . 100 . . . 104 . . 80 . . . 12 . . . . 71 84 . . 78 586 . 74 153 Shots 42 | . 3 1 . 1 1 . 7 . . . 1 . . 1 . . . 1 . . . . 2 2 . . 1 16 . 1 4 Rammed 13 | . 2 1 . . . 5 1 . . . . . . . . . . . . . . . . . . . 3 1 . . . Targets Rammed 18 | . 2 1 . . . 5 5 . . . . . . . . . . . . . . . . . 1 . 3 1 . . . Kicked 5 | . . . . . . . 4 . . . . . . . . . . . . . . . . . 1 . . . . . . Crushed . | . . . . . . . . . . . . . . . . . . . . . . . . . . . . . . . . Highest Temperature 362 | . 152 12 247 2 . 351 258 12 2 208 272 . 143 333 191 238 . 251 202 224 166 147 117 362 167 227 348 276 203 203 183 Average Temperature 97 | . 45 12 109 1 . 105 92 5 2 66 56 . 38 123 93 56 . 76 66 61 48 65 41 106 78 80 84 100 119 110 133 Received Heat Transfer 4112 | . 171 . 18 198 279 108 872 415 12 18 186 . . 264 57 45 . 204 32 33 31 12 42 197 . 85 36 667 38 28 64 Effects 7 | . . . . . . 3 . . . . . . . . . . . . . . . . . 3 . . . . . 1 . Energy Bleed 2 | . . . . . . 1 . . . . . . . . . . . . . . . . . . . . . . . 1 . Interference 5 | . . . . . . 2 . . . . . . . . . . . . . . . . . 3 . . . . . . . Siege Activations . | . . . . . . . . . . . . . . . . . . . . . . . . . . . . . . . . Martial Activations . | . . . . . . . . . . . . . . . . . . . . . . . . . . . . . . . . Shielding Activations . | . . . . . . . . . . . . . . . . . . . . . . . . . . . . . . . . Robots Disrupted . | . . . . . . . . . . . . . . . . . . . . . . . . . . . . . . . . Combat Hostiles . | . . . . . . . . . . . . . . . . . . . . . . . . . . . . . . . . Robots Corrupted 25 | . . . 1 2 1 2 8 5 . . . . . 1 . . . . 1 1 . . . 1 . . 1 1 . . . Combat Hostiles 13 | . . . 1 . . 2 5 4 . . . . . . . . . . . . . . . . . . . 1 . . . Parts Fried 64 | . 3 . . 3 2 1 24 13 1 . 5 . . 4 . . . 1 1 . . . . 3 . . 1 1 1 . . Impact Corruptions 54 | . . . 2 2 2 4 8 . . . 1 . . 4 . . . . 2 11 . 4 . 7 1 1 1 4 . . . Robots Melted 21 | . . . . . . . 6 1 . . . . . . . 1 . 1 . . . . . . . 1 . 11 . . . Combat Hostiles 16 | . . . . . . . 5 . . . . . . . . 1 . 1 . . . . . . . . . 9 . . . Parts Melted 68 | . . . . 3 2 . 22 6 2 . . . . . 2 . . 7 . 2 . 2 . . . 2 3 13 2 . . Heat Transferred 28653 | . 250 50 386 1184 629 594 6258 1837 475 . 259 . 74 2041 1150 1050 200 850 50 . . 50 160 37 . 485 1887 5184 1991 74 1448 Parts Sabotaged . | . . . . . . . . . . . . . . . . . . . . . . . . . . . . . . . . Parts Stolen . | . . . . . . . . . . . . . . . . . . . . . . . . . . . . . . . . Parts Stripped . | . . . . . . . . . . . . . . . . . . . . . . . . . . . . . . . . Power Chain Reactions 10 | . 2 2 . . . . 1 . . . . . . . . . . . . . . 1 . . . . 1 . . . 3 Alert | -11 -10 -10 -10 -8 -8 -8 -6 -6 -6 -6 -6 -5 -5 -5 -5 -5 -5 -4 -4 -4 -4 -4 -3 -3 -3 -2 -2 -2 -1 -1 -1 ------- Run | Yrd Mat Min Sub Mat Sto Rec Fac Ext Cet Arc Hub Fac Was Fac Upp Upp Zhi Pro Fac Upp Upp War Pro Res Qua Res Tes Frg Acc Com Ac0 Maximum Alert Level 5 | . 1 . . 1 1 . 5 5 4 2 2 1 . 3 . . . . . . . . . 2 1 2 3 5 5 5 . Low Security (%) 42 | 100 24 100 . 97 57 100 40 . . 61 96 . 100 31 . . . . 100 . . . . . 44 58 . . . . . Level 1 10 | . 75 . . 2 42 . 21 . . 19 1 100 . 3 . . . . . . . . . 42 55 7 16 . . . . Level 2 10 | . . . . . . . 7 . . 19 2 . . 44 . . . . . . . . . 57 . 34 67 9 . . . Level 3 4 | . . . . . . . 18 19 . . . . . 20 . . . . . . . . . . . . 16 11 . . . Level 4 4 | . . . . . . . 4 61 99 . . . . . . . . . . . . . . . . . . 8 . . . Level 5 24 | . . . . . . . 7 15 . . . . . . . . . . . . . . . . . . . 56 11 100 . High Security 2 | . . . . . . . . 4 . . . . . . . . . . . . . . . . . . . 13 88 . . Max Security . | . . . . . . . . . . . . . . . . . . . . . . . . . . . . . . . . Peak Influence 5627 | 5 389 137 . 205 252 132 1745 1961 1275 676 682 333 109 852 . . . . 161 . . . . 635 250 525 764 5627 3937 2613 . Initial 3376 | . . 114 . . 22 88 336 853 1100 477 . 333 109 . . . . . 1 . . . . 217 220 38 290 419 3376 2519 . Average 616 | . 251 38 . 109 170 53 513 1269 1195 196 117 323 23 474 . . . . 24 . . . . 400 173 207 546 2577 3675 2556 . Influence Increases 22666 | 15 632 119 90 396 347 271 2432 1602 324 284 892 . 10 1206 235 340 10 355 233 140 315 600 205 901 317 993 1026 5906 571 515 1384 Destroy 0b10 Robot/C 11000 | . 300 60 . 220 240 20 1220 840 160 120 260 . . 640 200 300 . 300 120 100 220 380 120 320 100 320 500 3420 360 160 . Destroy 0b10 Robot/NC 795 | 15 30 20 . 20 15 50 125 45 10 5 40 . . 10 5 10 10 . 25 5 10 15 20 65 15 35 45 110 25 15 . Destroy Leader 1688 | . 66 10 . 74 46 . 278 76 . . 72 . . 102 30 30 . 40 20 20 40 . 20 72 34 92 72 394 78 22 . Allied During Kill 828 | . . . . . 2 . . 481 140 120 . . . . . . . . . . . 85 . . . . . . . . . Successful Hack 335 | . 11 . . 7 . 16 14 . . . 23 . . 40 . . . . 21 . . . . 81 80 . 28 14 . . . Select Force Hacks 240 | . 60 . . . . 180 . . . . . . . . . . . . . . . . . . . . . . . . . Disable Machine 1605 | . 75 15 . 30 15 . 150 60 . 30 285 . . 180 . . . . 15 . . . . 15 45 15 120 330 45 60 120 Anti-Garrison Action 200 | . . . . . . . 150 . . . . . . . . . . . . . . . . . . . . . . 50 . Destroy Structure 4430 | . 90 14 . 45 29 5 150 25 14 9 197 . 10 114 . . . . 32 . . . . 108 28 291 261 1473 63 208 1264 Advance Influence 450 | . . . . . . . 300 . . . . . . . . . . . . . . . . 150 . . . . . . . Partial Spotted 180 | . . . . . . . . . . . . . . . . . . . . . . . . 60 15 75 . 30 . . . Lose Combat Pursuer 915 | . . . 90 . . . 45 75 . . 15 . . 120 . . . 15 . 15 45 120 45 30 . 165 . 135 . . . Influence Decreases 21315 | 15 338 413 90 341 173 413 777 1383 1094 1478 210 369 323 746 695 299 51 352 97 273 182 291 553 609 640 546 796 1025 2261 1548 2934 Entered New Map 11645 | . . 180 . . 33 141 51 889 864 717 . 349 204 . 171 . 41 . 2 52 2 139 448 33 172 31 226 327 2251 1418 2904 Time Decay 8352 | 15 338 233 80 341 130 264 716 434 150 701 210 20 119 286 524 299 10 352 95 221 170 142 105 416 318 465 410 668 10 110 . Lost Part 198 | . . . 10 . 10 8 10 . . . . . . 10 . . . . . . 10 . . 10 . 40 10 30 . 20 30 Lost Ally 220 | . . . . . . . . 60 80 60 . . . . . . . . . . . 10 . . . 10 . . . . . Purge Threat 900 | . . . . . . . . . . . . . . 450 . . . . . . . . . 150 150 . 150 . . . . Squads Dispatched 109 | . 6 . . . 1 . 26 3 . . 2 . . 6 . . . . 2 . . . . 4 3 1 8 36 10 1 . Investigation 10 | . 4 . . . . . 2 . . . . . . 2 . . . . . . . . . 2 . . . . . . . Extermination 19 | . . . . . . . 6 . . . . . . 1 . . . . 1 . . . . . 2 . 3 5 . 1 . Reinforcement 28 | . 2 . . . 1 . 7 2 . . 2 . . 2 . . . . 1 . . . . 2 1 1 2 3 2 . . Assault 42 | . . . . . . . 5 1 . . . . . . . . . . . . . . . . . . . 28 8 . . Garrison 10 | . . . . . . . 6 . . . . . . 1 . . . . . . . . . . . . 3 . . . . Intercept . | . . . . . . . . . . . . . . . . . . . . . . . . . . . . . . . . Searches Triggered . | . . . . . . . . . . . . . . . . . . . . . . . . . . . . . . . . Construction Impeded 3 | . . . . . . . 2 1 . . . . . . . . . . . . . . . . . . . . . . . Haulers Reinforced 5 | . . . . . . . 4 . . . . . . 1 . . . . . . . . . . . . . . . . . Active Scanning Responses . | . . . . . . . . . . . . . . . . . . . . . . . . . . . . . . . . Cargo Convoy Interrupts . | . . . . . . . . . . . . . . . . . . . . . . . . . . . . . . . . Stealth | -11 -10 -10 -10 -8 -8 -8 -6 -6 -6 -6 -6 -5 -5 -5 -5 -5 -5 -4 -4 -4 -4 -4 -3 -3 -3 -2 -2 -2 -1 -1 -1 --------- Run | Yrd Mat Min Sub Mat Sto Rec Fac Ext Cet Arc Hub Fac Was Fac Upp Upp Zhi Pro Fac Upp Upp War Pro Res Qua Res Tes Frg Acc Com Ac0 Distress Signals 55 | . 2 . . 2 1 . 4 2 2 . 5 . . 1 . . . . . . . . 1 4 . 6 1 . 1 23 . Communications Jammed 92 | . . . . . . . . . . . . . . . . . . . . . . . . 2 2 32 4 52 . . . Distress Signals 91 | . . . . . . . . . . . . . . . . . . . . . . . . 2 2 32 4 51 . . . Times Spotted 888 | . 25 3 13 16 16 7 86 45 10 8 20 . 1 46 10 22 . 16 9 6 14 71 12 22 16 56 28 208 17 10 75 Peak Tracking Total 19 | . 6 3 3 5 4 1 8 7 5 10 5 . 1 15 4 7 . 5 4 2 6 19 5 5 3 17 7 11 6 4 11 Tactical Retreats 43 | . . . 2 . . 1 3 3 . . 1 . . 3 . . . 1 . 1 2 5 1 1 . 8 . 7 . . 4 Traps | -11 -10 -10 -10 -8 -8 -8 -6 -6 -6 -6 -6 -5 -5 -5 -5 -5 -5 -4 -4 -4 -4 -4 -3 -3 -3 -2 -2 -2 -1 -1 -1 ------- Run | Yrd Mat Min Sub Mat Sto Rec Fac Ext Cet Arc Hub Fac Was Fac Upp Upp Zhi Pro Fac Upp Upp War Pro Res Qua Res Tes Frg Acc Com Ac0 Traps Triggered 28 | . 2 . 4 . 1 . 4 1 . . 3 1 . 1 . . . . . . . . . 2 . . 1 8 . . . Indirectly 3 | . . . . . . . . . . . 3 . . . . . . . . . . . . . . . . . . . . Trap Hack Attempts . | . . . . . . . . . . . . . . . . . . . . . . . . . . . . . . . . Triggered . | . . . . . . . . . . . . . . . . . . . . . . . . . . . . . . . . Disarmed . | . . . . . . . . . . . . . . . . . . . . . . . . . . . . . . . . Reprogrammed 1 | . . . . . . . . . . . . . . . . . . . 1 . . . . . . . . . . . . Reused . | . . . . . . . . . . . . . . . . . . . . . . . . . . . . . . . . Traps Extracted . | . . . . . . . . . . . . . . . . . . . . . . . . . . . . . . . . Installed . | . . . . . . . . . . . . . . . . . . . . . . . . . . . . . . . . Triggered . | . . . . . . . . . . . . . . . . . . . . . . . . . . . . . . . . Machines | -11 -10 -10 -10 -8 -8 -8 -6 -6 -6 -6 -6 -5 -5 -5 -5 -5 -5 -4 -4 -4 -4 -4 -3 -3 -3 -2 -2 -2 -1 -1 -1 ---------- Run | Yrd Mat Min Sub Mat Sto Rec Fac Ext Cet Arc Hub Fac Was Fac Upp Upp Zhi Pro Fac Upp Upp War Pro Res Qua Res Tes Frg Acc Com Ac0 Machines Disabled 135 | . 5 1 . 2 1 . 11 6 2 2 19 . . 12 . 1 . . 1 . . 3 2 1 3 1 9 34 3 6 10 Max in Single Turn 18 | . 4 1 . 1 1 . 4 2 . 1 18 . . 5 . 1 . . 1 . . 1 2 1 1 1 2 2 2 2 1 Garrison Access 12 | . . . . 1 . . 2 . . . 1 . . . . . . . 1 . . . . 1 1 3 1 1 . . . Phase Generator 1 | . . . . . . . . . . . . . . . . . . . . . . . . . . . . . . 1 . Network Hub 1 | . . . . . . . . . . . 1 . . . . . . . . . . . . . . . . . . . . Machines Repaired . | . . . . . . . . . . . . . . . . . . . . . . . . . . . . . . . . Machines Dismantled . | . . . . . . . . . . . . . . . . . . . . . . . . . . . . . . . . Machines Sabotaged . | . . . . . . . . . . . . . . . . . . . . . . . . . . . . . . . . Overloaded Fab Kills . | . . . . . . . . . . . . . . . . . . . . . . . . . . . . . . . . Hacking | -11 -10 -10 -10 -8 -8 -8 -6 -6 -6 -6 -6 -5 -5 -5 -5 -5 -5 -4 -4 -4 -4 -4 -3 -3 -3 -2 -2 -2 -1 -1 -1 --------- Run | Yrd Mat Min Sub Mat Sto Rec Fac Ext Cet Arc Hub Fac Was Fac Upp Upp Zhi Pro Fac Upp Upp War Pro Res Qua Res Tes Frg Acc Com Ac0 Machines Accessed 97 | . 7 1 . 4 . 10 11 3 . 1 5 . . 6 1 . 4 . 8 1 . 1 . 8 8 4 7 6 . 1 . Terminals 51 | . 5 . . 3 . 3 6 3 . . 3 . . 4 . . . . 3 . . . . 6 6 1 3 4 . 1 . Fabricators 3 | . . . . . . . 1 . . . . . . . . . . . . . . . . . . . 2 . . . . Repair Stations . | . . . . . . . . . . . . . . . . . . . . . . . . . . . . . . . . Recycling Units 17 | . 2 . . . . 6 3 . . . . . . . . . . . 4 . . . . 2 . . . . . . . Scanalyzers 3 | . . . . . . . . . . . . . . . . . . . . . . . . . 1 . 1 1 . . . Garrison Access 13 | . . . . 1 . . 1 . . . 2 . . 2 . . . . 1 . . . . . 1 3 1 1 . . . Total Hacks 304 | . 24 1 . 8 . 34 18 4 . 25 12 . . 34 1 . 17 . 25 1 . 1 . 35 28 6 16 13 . 1 . Successful 139 | . 10 1 . 4 . 25 4 1 . 25 4 . . 9 1 . 17 . 7 1 . 1 . 7 12 2 4 3 . 1 . Failed 165 | . 14 . . 4 . 9 14 3 . . 8 . . 25 . . . . 18 . . . . 28 16 4 12 10 . . . Catastrophic 47 | . 2 . . 3 . 1 5 2 . . 1 . . 8 . . . . 4 . . . . 8 3 1 6 3 . . . Database Lockouts . | . . . . . . . . . . . . . . . . . . . . . . . . . . . . . . . . Manual 94 | . 14 . . 6 1 17 2 . 1 . 1 . . 16 . . . . 4 . . . . 16 13 . 2 1 . . . Terminals 172 | . 21 . . 7 . 13 10 4 . . 8 . . 23 . . . . 16 . . . . 25 23 2 9 10 . 1 . Fabricators 5 | . . . . . . . 2 . . . . . . . . . . . . . . . . . . . 3 . . . . Repair Stations . | . . . . . . . . . . . . . . . . . . . . . . . . . . . . . . . . Recycling Units 39 | . 3 . . . . 13 5 . . . . . . . . . . . 8 . . . . 10 . . . . . . . Scanalyzers 5 | . . . . . . . . . . . . . . . . . . . . . . . . . 3 . 1 1 . . . Garrison Access 29 | . . . . 1 . . 1 . . . 4 . . 11 . . . . 1 . . . . . 2 4 3 2 . . . Terminal Hacks 95 | . 4 1 . 2 . 10 1 1 . 25 3 . . 8 1 . 17 . 3 1 . 1 . 6 7 . 2 1 . 1 . Record 37 | . . . . 1 . 6 . . . 25 . . . . . . 5 . . . . . . . . . . . . . . Part Schematic 4 | . . . . . . . . . . . . . . . . . 4 . . . . . . . . . . . . . . Robot Analysis 4 | . . . . . . . . . . . . . . . . . 4 . . . . . . . . . . . . . . Prototype ID Bank 9 | . 1 . . . . 1 . . . . . . . 1 . . 4 . . . . . . . 2 . . . . . . Open Door 7 | . . 1 . . . . . 1 . . . . . . 1 . . . . 1 . 1 . 1 . . . . . 1 . Branch Access Points 5 | . . . . 1 . 1 . . . . . . . 1 . . . . 1 . . . . 1 . . . . . . . Terminal Index 2 | . 1 . . . . . . . . . . . . . . . . . . . . . . . 1 . . . . . . Unreport Threat 6 | . . . . . . . . . . . . . . 3 . . . . . . . . . 1 1 . 1 . . . . Locate Traps 5 | . 1 . . . . . . . . . 2 . . 1 . . . . . . . . . . 1 . . . . . . Reprogram Traps 1 | . . . . . . . . . . . . . . . . . . . 1 . . . . . . . . . . . . Recall Extermination 1 | . . . . . . . . . . . . . . . . . . . . . . . . . 1 . . . . . . Hauler Manifests 1 | . 1 . . . . . . . . . . . . . . . . . . . . . . . . . . . . . . Registered Components 1 | . . . . . . . . . . . . . . . . . . . . . . . . 1 . . . . . . . Zone Layout 9 | . . . . . . . 1 . . . 1 . . 2 . . . . 1 . . . . 2 1 . 1 . . . . Proto ID Catalog 1 | . . . . . . . . . . . . . . . . . . . . . . . . . . . . 1 . . . Release Object 2 | . . . . . . 2 . . . . . . . . . . . . . . . . . . . . . . . . . Fabricator Hacks . | . . . . . . . . . . . . . . . . . . . . . . . . . . . . . . . . Repair Station Hacks . | . . . . . . . . . . . . . . . . . . . . . . . . . . . . . . . . Recycling Unit Hacks 8 | . . . . . . 4 2 . . . . . . . . . . . 2 . . . . . . . . . . . . Retrieve Components 8 | . . . . . . 4 2 . . . . . . . . . . . 2 . . . . . . . . . . . . Scanalyzer 2 | . . . . . . . . . . . . . . . . . . . . . . . . . 2 . . . . . . Insert Component 2 | . . . . . . . . . . . . . . . . . . . . . . . . . 2 . . . . . . Garrison Access Hacks 9 | . . . . 1 . . 1 . . . 1 . . . . . . . 1 . . . . . 1 2 1 1 . . . Seal Access 9 | . . . . 1 . . 1 . . . 1 . . . . . . . 1 . . . . . 1 2 1 1 . . . Unauthorized Hacks 25 | . 6 . . 1 . 11 . . . . . . . 1 . . . . 1 . . . . 1 2 . 1 1 . . . Terminals 17 | . 4 . . 1 . 5 . . . . . . . 1 . . . . 1 . . . . 1 2 . 1 1 . . . Track 1 | . . . . . . . . . . . . . . . . . . . 1 . . . . . . . . . . . . Assimilate 1 | . . . . . . . . . . . . . . . . . . . . . . . . . 1 . . . . . . Botnet 8 | . . . . 1 . 2 . . . . . . . 1 . . . . . . . . . 1 1 . 1 1 . . . Skim 7 | . 4 . . . . 3 . . . . . . . . . . . . . . . . . . . . . . . . . Fabricators . | . . . . . . . . . . . . . . . . . . . . . . . . . . . . . . . . Repair Stations . | . . . . . . . . . . . . . . . . . . . . . . . . . . . . . . . . Recycling Units 8 | . 2 . . . . 6 . . . . . . . . . . . . . . . . . . . . . . . . . Tunnel 8 | . 2 . . . . 6 . . . . . . . . . . . . . . . . . . . . . . . . . Scanalyzers . | . . . . . . . . . . . . . . . . . . . . . . . . . . . . . . . . Garrison Access . | . . . . . . . . . . . . . . . . . . . . . . . . . . . . . . . . Data Cores Recovered 3 | . . . . . . . . . . . 1 . . . . . . . . . . . . 1 . 1 . . . . . Used 1 | . . . . . . . . . . . . . . . . . . . . . . . . 1 . . . . . . . Hacking Detections 72 | . 6 . . 3 . 5 10 2 . . 5 . . 6 . . . . 7 . . . . 6 8 2 7 4 . 1 . Full Trace Events 4 | . . . . . . . 1 . . . . . . 2 . . . . . . . . . 1 . . . . . . . Feedback Events . | . . . . . . . . . . . . . . . . . . . . . . . . . . . . . . . . Feedback Blocked . | . . . . . . . . . . . . . . . . . . . . . . . . . . . . . . . . Robot Schematics Acquired 1 | . . . . . . . . . . . . . . . . . . . . . . . . . . . . 1 . . . Robots Built . | . . . . . . . . . . . . . . . . . . . . . . . . . . . . . . . . Authchips . | . . . . . . . . . . . . . . . . . . . . . . . . . . . . . . . . Time . | . . . . . . . . . . . . . . . . . . . . . . . . . . . . . . . . Total Robot Build Rating . | . . . . . . . . . . . . . . . . . . . . . . . . . . . . . . . . Part Schematics Acquired 8 | . . . . . . . . . . . . . . . . . 4 . . . . . . . . . . 4 . . . Parts Built . | . . . . . . . . . . . . . . . . . . . . . . . . . . . . . . . . Authchips . | . . . . . . . . . . . . . . . . . . . . . . . . . . . . . . . . Time . | . . . . . . . . . . . . . . . . . . . . . . . . . . . . . . . . Total Part Build Rating . | . . . . . . . . . . . . . . . . . . . . . . . . . . . . . . . . Parts Repaired . | . . . . . . . . . . . . . . . . . . . . . . . . . . . . . . . . Time . | . . . . . . . . . . . . . . . . . . . . . . . . . . . . . . . . Parts Recycled . | . . . . . . . . . . . . . . . . . . . . . . . . . . . . . . . . Recycled Matter . | . . . . . . . . . . . . . . . . . . . . . . . . . . . . . . . . Retrieved Matter . | . . . . . . . . . . . . . . . . . . . . . . . . . . . . . . . . Retrieved Components 27 | . . . . . . 15 11 . . . . . . . . . . . 1 . . . . . . . . . . . . Parts Scanalyzed . | . . . . . . . . . . . . . . . . . . . . . . . . . . . . . . . . Part Schematics Acquired . | . . . . . . . . . . . . . . . . . . . . . . . . . . . . . . . . Parts Damaged . | . . . . . . . . . . . . . . . . . . . . . . . . . . . . . . . . Bothacking | -11 -10 -10 -10 -8 -8 -8 -6 -6 -6 -6 -6 -5 -5 -5 -5 -5 -5 -4 -4 -4 -4 -4 -3 -3 -3 -2 -2 -2 -1 -1 -1 ------------ Run | Yrd Mat Min Sub Mat Sto Rec Fac Ext Cet Arc Hub Fac Was Fac Upp Upp Zhi Pro Fac Upp Upp War Pro Res Qua Res Tes Frg Acc Com Ac0 Used RIF Installer . | . . . . . . . . . . . . . . . . . . . . . . . . . . . . . . . . Robots Hacked . | . . . . . . . . . . . . . . . . . . . . . . . . . . . . . . . . Non-combat . | . . . . . . . . . . . . . . . . . . . . . . . . . . . . . . . . Combat . | . . . . . . . . . . . . . . . . . . . . . . . . . . . . . . . . Robot Hacks Applied . | . . . . . . . . . . . . . . . . . . . . . . . . . . . . . . . . Relay Couplers Released 5 | . . . . . . . 1 . . . . . . . . . . . . . . . . 2 . 2 . . . . . Machine Destruction 5 | . . . . . . . 1 . . . . . . . . . . . . . . . . 2 . 2 . . . . . Fabnet Peak Effective % . | . . . . . . . . . . . . . . . . . . . . . . . . . . . . . . . . Robots Rewired 13 | . . . . . . . . 8 . . . . . . . . . . . . . 5 . . . . . . . . . Allies Hacked . | . . . . . . . . . . . . . . . . . . . . . . . . . . . . . . . . Hacks Repelled . | . . . . . . . . . . . . . . . . . . . . . . . . . . . . . . . . Allies | -11 -10 -10 -10 -8 -8 -8 -6 -6 -6 -6 -6 -5 -5 -5 -5 -5 -5 -4 -4 -4 -4 -4 -3 -3 -3 -2 -2 -2 -1 -1 -1 -------- Run | Yrd Mat Min Sub Mat Sto Rec Fac Ext Cet Arc Hub Fac Was Fac Upp Upp Zhi Pro Fac Upp Upp War Pro Res Qua Res Tes Frg Acc Com Ac0 Total Allies 26 | . . . . . . . . 15 5 . . . . . . . . . . . . 5 . . 1 . . . . . . Largest Group 12 | . . . . . . . . 12 12 12 . . . . . . . . . . . 5 . . 1 1 . . . . . Highest-Rated Group 803 | . . . . . . . . 467 803 803 . . . . . . . . . . . 293 . . 26 26 . . . . . Highest-Rated Ally 159 | . . . . . . . . 159 159 159 . . . . . . . . . . . 68 . . 26 26 . . . . . Total Orders 9 | . . . 7 . . . . . . . . . . . . . . . . . . 2 . . . . . . . . . STAY 1 | . . . . . . . . . . . . . . . . . . . . . . 1 . . . . . . . . . FOLLOW 1 | . . . . . . . . . . . . . . . . . . . . . . 1 . . . . . . . . . RETURN 7 | . . . 7 . . . . . . . . . . . . . . . . . . . . . . . . . . . . Ally Attacks 245 | . . . 43 . 9 . . 93 56 28 . . . . . . . . . . . 16 . . . . . . . . . Total Damage 4850 | . . . 229 . 36 . . 1661 1060 988 . . . . . . . . . . . 876 . . . . . . . . . Kills 26 | . . . . . 1 . . 7 4 6 . . . . . . . . . . . 8 . . . . . . . . . Allies Corrupted . | . . . . . . . . . . . . . . . . . . . . . . . . . . . . . . . . Allies Melted 1 | . . . . . . . . . . . . . . . . . . . . . . . . . . 1 . . . . . Intel | -11 -10 -10 -10 -8 -8 -8 -6 -6 -6 -6 -6 -5 -5 -5 -5 -5 -5 -4 -4 -4 -4 -4 -3 -3 -3 -2 -2 -2 -1 -1 -1 ------- Run | Yrd Mat Min Sub Mat Sto Rec Fac Ext Cet Arc Hub Fac Was Fac Upp Upp Zhi Pro Fac Upp Upp War Pro Res Qua Res Tes Frg Acc Com Ac0 Active Infowar (turns) 18765 | 16 845 812 1093 907 128 . 1792 . . . . . . 55 979 . . . 714 618 385 185 239 1016 716 1782 998 2089 325 2210 861 Optics 6783 | . . . . . . . . . . . . . . . . . . . . . . 185 239 1000 716 1782 815 2046 . . . Sensors 1973 | . . . . . . . 370 . . . . . . . . . . . . . . . . . 360 718 525 . . . . IFF 2456 | . . . . . . . 1422 . . . . . . 55 979 . . . . . . . . . . . . . . . . Terrain 2578 | . . . . . . . . . . . . . . . . . . . 714 618 385 . . . . . . . . . 861 Seismic 3801 | 16 845 812 1093 907 128 . . . . . . . . . . . . . . . . . . . . . . . . . . Cloaking 4385 | . . . . . . . . . . . . . . . . . . . . . . . . 523 . . 286 1255 111 2210 . Jamming 6977 | . . . . . . . . . . . . . . . . . . . . . . . . 1016 716 1734 998 2067 325 121 . Robot Analysis Total 4 | . . . . . . . . . . . . . . . . . 4 . . . . . . . . . . . . . . Derelict Logs Recovered 14 | . . 2 2 . . . . . . . . . . . 3 2 . 1 . 1 3 . . . . . . . . . . Drone Launches 25 | . . . 22 . 3 . . . . . . . . . . . . . . . . . . . . . . . . . . Drone Recoveries 23 | . . . 20 . 3 . . . . . . . . . . . . . . . . . . . . . . . . . . Exploration | -11 -10 -10 -10 -8 -8 -8 -6 -6 -6 -6 -6 -5 -5 -5 -5 -5 -5 -4 -4 -4 -4 -4 -3 -3 -3 -2 -2 -2 -1 -1 -1 ------------- Run | Yrd Mat Min Sub Mat Sto Rec Fac Ext Cet Arc Hub Fac Was Fac Upp Upp Zhi Pro Fac Upp Upp War Pro Res Qua Res Tes Frg Acc Com Ac0 Turns Passed 42970 | 208 845 813 2917 907 278 4342 3308 1115 319 3473 487 55 601 726 1905 1257 316 836 716 618 625 1056 239 1016 716 1782 998 2994 327 5797 1378 Spaces Moved 28023 | 98 415 482 1560 418 106 2217 2042 784 156 384 439 97 548 894 927 831 156 384 661 629 620 1033 299 1393 1000 2622 1044 2650 327 1842 965 Core 247 | 2 . . . . . . . . . 245 . . . . . . . . . . . . . . . . . . . . . Treads 7679 | 96 415 482 882 418 106 1181 700 . . . 386 97 548 894 44 . . 36 187 . . . . . . 570 . 164 177 . 296 Legs 7746 | . . . . . . . 690 784 156 65 . . . . . . . 268 . . 11 1033 299 844 796 1387 . 563 150 606 94 Wheels 2064 | . . . 678 . . 987 399 . . . . . . . . . . . . . . . . . . . . . . . . Hover 6513 | . . . . . . 49 141 . . 74 53 . . . . . . . . . . . . 549 204 665 1044 1923 . 1236 575 Flight 3774 | . . . . . . . 112 . . . . . . . 883 831 156 80 474 629 609 . . . . . . . . . . Fastest Speed 29 | 50 160 160 130 160 170 136 59 80 93 93 55 55 55 55 143 143 143 143 76 76 76 61 61 54 54 54 54 39 67 58 29 Average Speed 107 | 157 160 160 165 164 170 163 133 84 93 863 85 55 55 57 143 143 143 143 94 76 76 76 61 58 54 56 54 67 75 70 83 Slowest Speed 1300 | 160 160 160 240 170 170 312 200 96 93 1300 93 55 55 143 143 143 143 143 143 76 117 117 61 61 54 59 54 156 80 101 214 Overloaded Moves . | . . . . . . . . . . . . . . . . . . . . . . . . . . . . . . . . Propulsion Burnouts . | . . . . . . . . . . . . . . . . . . . . . . . . . . . . . . . . Robots Hopped . | . . . . . . . . . . . . . . . . . . . . . . . . . . . . . . . . Potential Cave-ins 1 | . . . . . . . . . . . . . . . . . . . . . . 1 . . . . . . . . . Cave-ins Triggered 1 | . . . . . . . . . . . . . . . . . . . . . . . . . . 1 . . . . . Teleports 5 | . . . . . . . . . . . . . . . . . . . . . . . . . . . . 1 2 1 1 Exploration Rate (%) 62 | 6 69 96 74 37 28 99 48 87 61 97 59 2 97 26 97 87 60 53 21 86 90 90 53 46 96 75 91 47 10 68 53 Regions Visited 31 Branch Regions 21 Pre-discovered Areas 17 | . 2 1 1 . . 6 . . . . . . . . 1 1 3 . . 1 1 . . . . . . . . . . Known Exits Taken 9 | . . . . 1 . . . . . . . . . 1 1 . . . 1 . 1 . . 1 1 1 . 1 . . . Unknown Exits Taken 20 | 1 1 1 1 . 1 1 1 1 1 1 1 . . . . 1 1 1 . 1 . 1 1 . . . 1 . 1 1 . Scrap Searched 13 | . . 1 . . . . . . . . . . . . 2 2 . 2 . 4 2 . . . . . . . . . . Spaces Dug 304 | . 40 . 15 12 . 1 59 . . . 4 . . 2 . 14 . 17 5 6 1 . 29 3 6 14 44 18 . 6 8 Terrain Destroyed 2071 | . 120 18 16 44 37 6 158 27 4 1 198 . 5 77 6 26 . 43 16 16 65 13 79 61 17 115 79 260 21 98 445 Melee 45 | . 4 . 14 2 . 1 9 . . . . . . 1 . . . . 2 . 1 . . 1 6 4 . . . . . Projectile 847 | . 3 . 2 8 3 5 52 27 4 1 23 . 5 12 6 1 . 9 14 16 17 9 15 25 11 69 49 205 12 24 220 AOE 1179 | . 113 18 . 34 34 . 97 . . . 175 . . 64 . 25 . 34 . . 47 4 64 35 . 42 30 55 9 74 225 Terrain Rammed . | . . . . . . . . . . . . . . . . . . . . . . . . . . . . . . . . Walls Destroyed . | . . . . . . . . . . . . . . . . . . . . . . . . . . . . . . . . Machines Disabled . | . . . . . . . . . . . . . . . . . . . . . . . . . . . . . . . . Actions | -11 -10 -10 -10 -8 -8 -8 -6 -6 -6 -6 -6 -5 -5 -5 -5 -5 -5 -4 -4 -4 -4 -4 -3 -3 -3 -2 -2 -2 -1 -1 -1 --------- Run | Yrd Mat Min Sub Mat Sto Rec Fac Ext Cet Arc Hub Fac Was Fac Upp Upp Zhi Pro Fac Upp Upp War Pro Res Qua Res Tes Frg Acc Com Ac0 Total 38844 | 122 499 506 1833 589 159 2862 2381 1134 309 534 502 98 818 1036 1476 875 244 640 716 736 730 1225 332 1532 1129 2817 1384 3528 398 6271 1429 Wait 7504 | . 4 1 188 44 5 520 38 147 116 142 6 . 232 35 514 8 77 219 6 78 71 41 10 34 69 34 193 300 22 4324 26 Move 27993 | 97 414 481 1559 417 105 2216 2041 783 155 383 438 97 547 893 926 830 155 383 660 628 619 1032 298 1392 1000 2621 1043 2649 326 1841 964 Hop . | . . . . . . . . . . . . . . . . . . . . . . . . . . . . . . . . Pick Up 230 | 2 10 3 12 19 . 12 23 3 5 . 5 . . 8 2 5 2 . 10 . . 13 . 15 8 11 9 25 7 8 13 Fast Attach 56 | 7 . . . 3 . 2 5 . . . 1 1 3 4 . . 1 1 . . . . . 1 . 9 7 6 . . 5 Attach 62 | . . . 2 2 1 . 7 . . . . . . 1 1 . . . 2 . 1 2 . 3 . 7 3 11 3 6 10 Detach 48 | . . . . . . 8 5 . 1 . . . . 2 . . . . . . . 2 . 1 . 5 3 9 2 5 5 Swap 336 | . 13 6 11 21 6 . 37 3 1 1 2 . 8 14 3 3 3 2 2 . 2 18 2 24 5 21 27 62 5 5 29 Drop 227 | . 2 . 11 27 . 24 20 4 7 . 3 . 3 11 1 4 2 4 4 . . 11 . 7 8 14 13 27 . 6 14 Fire 2130 | 16 49 14 27 47 37 69 181 105 24 8 47 . 25 65 29 25 4 31 29 27 36 76 22 49 26 87 83 424 33 72 363 Melee 104 | . 5 . 23 9 5 6 19 . . . . . . 3 . . . . 3 3 1 . . 6 13 8 . . . . . Ram 4 | . . . . . . . . . . . . . . . . . . . . . . . . . . . 3 1 . . . Kick 4 | . . . . . . . 4 . . . . . . . . . . . . . . . . . . . . . . . . Crush 9 | . 2 1 . . . 5 1 . . . . . . . . . . . . . . . . . . . . . . . . Escape Stasis 14 | . . . . . . . . . . . . . . . . . . . . . . . . . . . . 14 . . . Rewire 123 | . . . . . . . . 89 . . . . . . . . . . . . . 30 . . . . . . . 4 . Trap . | . . . . . . . . . . . . . . . . . . . . . . . . . . . . . . . . Miscellaneous . | . . . . . . . . . . . . . . . . . . . . . . . . . . . . . . . . Route ------- -11/Scrapyard -10/Materials (discovered 3 exits: [*Mat x2] / *Min) -10/Mines (discovered 3 exits: [*Mat x2] / [*Sub]) -10/Subcaves (discovered 2 exits: *Mat x2) -8/Materials (discovered 2 exits: *Sto x2) -8/Storage -8/Recycling -6/Factory (discovered 4 exits: [*Fac] / *Low x2 / *Ext) -6/Extension (discovered 2 exits: [*Fac] / *Cet) -6/Cetus (discovered 2 exits: [*Fac] / *Arc) -6/Archives (discovered 3 exits: [*Fac] / *Hub x2) -6/Hub_04(d) (discovered 3 exits: [*Fac x3]) -5/Factory -5/Waste -5/Factory (discovered 2 exits: *Upp x2) -5/Upper Caves -5/Upper Caves (discovered 2 exits: *Fac / *Zhi) -5/Zhirov -4/Proximity Caves -4/Factory (discovered 2 exits: *Upp x2) -4/Upper Caves -4/Upper Caves (discovered 2 exits: *Res / *War) -4/Warlord -3/Proximity Caves -3/Research (discovered 4 exits: *Res / Arm / *Qua x2) -3/Quarantine -2/Research (discovered 4 exits: *Acc x3 / *Tes) -2/Testing (discovered 3 exits: *Acc / [*Sec] / *Frg) -2/Protoforge -1/Access -1/Command (discovered 3 exits: [Sur x2] / [*Ac0]) -1/Access_0 0b11 Command History --------- Turn | Location | Event 4 | -11/Scrapyard | Discovered new exit (range 16) 209 | -11/Scrapyard | Entered Materials 307 | -10/Materials | Build established: Mutant 464 | -10/Materials | Discovered new exit (range 15) 756 | -10/Materials | Discovered new exit (range 11) 894 | -10/Materials | Discovered new exit (range 4) 1054 | -10/Materials | Entered Mines 1269 | -10/Mines | Discovered new exit (range 9) 1336 | -10/Mines | Learned Materials stockpile data 1370 | -10/Mines | Found the Drone Emporium 1377 | -10/Mines | Found Prototype Device 1378 | -10/Mines | Identified Thief Drone Bay 1514 | -10/Mines | Discovered new exit (range 8) 1552 | -10/Mines | Discovered new exit (range 6) 1780 | -10/Mines | Learned location of Mines (-9) 1867 | -10/Mines | Entered Subcaves 1887 | -10/Subcaves | Learned location of Zion (-7) 2209 | -10/Subcaves | A swath of the cavern ceiling suddenly collapsed 2332 | -10/Subcaves | Learned Materials emergency access door positions 2516 | -10/Subcaves | Discovered new exit (range 10) 2947 | -10/Subcaves | A Subdweller sparked back to life 2947 | -10/Subcaves | A Subdweller sparked back to life 2947 | -10/Subcaves | A Subdweller sparked back to life 2951 | -10/Subcaves | Core integrity fell below 50% 2979 | -10/Subcaves | Found Prototype Flight Unit 3563 | -10/Subcaves | Shifting Twisted Machinery released Sub. Monowheel 3591 | -10/Subcaves | Shifting Twisted Machinery released Sub. Machine Gun 3660 | -10/Subcaves | Shifting Twisted Machinery released Mak. Hammer 3661 | -10/Subcaves | Shifting Twisted Machinery released Riot Gun 3735 | -10/Subcaves | Shifting Twisted Machinery released Battle Cannon 3738 | -10/Subcaves | Shifting Twisted Machinery released Battle Cannon 3796 | -10/Subcaves | Discovered new exit (range 6) 4784 | -10/Subcaves | Entered Materials 4784 | -8/Materials | Evolved 4 slots: Propulsion x3, Utility x1 4992 | -8/Materials | Discovered new exit (range 6) 5515 | -8/Materials | Identified exit to Storage 5691 | -8/Materials | Entered Storage 5966 | -8/Storage | Used back door to open Recycling access 5966 | -8/Storage | Discovered new exit (range 3) 5969 | -8/Storage | Entered Recycling 6280 | -8/Recycling | Entered Scraplab 6288 | -8/Recycling | Found Prototype Device 6288 | -8/Recycling | Identified Scrap Engine 6972 | -8/Recycling | Build established: Construct 7828 | -8/Recycling | Discovered new exit (range 16) 10311 | -8/Recycling | Entered Factory 10311 | -6/Factory | Evolved 4 slots: Utility x3, Weapon x1 10389 | -6/Factory | Discovered new exit (range 5) 10395 | -6/Factory | Identified exit to Lower Caves 12317 | -6/Factory | Garrison activated, responded to threat 12411 | -6/Factory | First assault squad dispatched 12827 | -6/Factory | Garrison activated, responded to threat 12868 | -6/Factory | Destroyed 7 combat bots 12964 | -6/Factory | Discovered new exit (range 13) 13234 | -6/Factory | Spotted B-75 Beast 13243 | -6/Factory | Destroyed B-75 Beast 13428 | -6/Factory | Destroyed 7 combat bots 13514 | -6/Factory | Discovered exit to Lower Caves (range 15) 13519 | -6/Factory | Discovered new exit (range 15) 13619 | -6/Factory | Entered Extension 13871 | -6/Extension | Rescued a captive Derelict 13935 | -6/Extension | Rescued a captive Derelict 13936 | -6/Extension | Rescued a captive Derelict 13939 | -6/Extension | Rescued a captive Derelict 14293 | -6/Extension | Spotted B-75 Beast 14302 | -6/Extension | Destroyed B-75 Beast 14309 | -6/Extension | Spotted B-75 Beast 14313 | -6/Extension | Build established: Commander-Construct 14320 | -6/Extension | Allies destroyed B-75 Beast 14419 | -6/Extension | Disrupted transfer network 14503 | -6/Extension | Rescued A7 14597 | -6/Extension | Rescued a captive Derelict 14599 | -6/Extension | Rescued a captive Derelict 14652 | -6/Extension | Discovered new exit (range 10) 14653 | -6/Extension | Discovered new exit (range 6) 14669 | -6/Extension | First assault squad dispatched 14681 | -6/Extension | High security lockdown imminent 14727 | -6/Extension | Destroyed 7 combat bots 14734 | -6/Extension | Entered Cetus 14734 | -6/Cetus | Accompanied by 11 allies (A7) 14739 | -6/Cetus | Acquired a Cetus Manufacturing Module code from A7 14747 | -6/Cetus | Spotted Cetus Guard 14747 | -6/Cetus | Spotted Cetus Guard 14749 | -6/Cetus | Spotted Cetus Guard 14750 | -6/Cetus | Spotted Cetus Guard 14752 | -6/Cetus | Destroyed Cetus Guard 14758 | -6/Cetus | Destroyed Cetus Guard 14764 | -6/Cetus | Destroyed Cetus Guard 14767 | -6/Cetus | Allies destroyed Cetus Guard 14793 | -6/Cetus | Lost 4 allies 14814 | -6/Cetus | Started Cetus Manufacturing Module 14830 | -6/Cetus | Discovered new exit (range 15) 14839 | -6/Cetus | Manufactured an Enhanced Grunt 14847 | -6/Cetus | Spotted Cetus Guard 14847 | -6/Cetus | Spotted Cetus Guard 14849 | -6/Cetus | Spotted Cetus Guard 14850 | -6/Cetus | Spotted Cetus Guard 14853 | -6/Cetus | Destroyed Cetus Guard 14858 | -6/Cetus | Allies destroyed Cetus Guard 14863 | -6/Cetus | Destroyed Cetus Guard 14864 | -6/Cetus | Manufactured an Enhanced Grunt 14864 | -6/Cetus | Core integrity fell below 50% 14867 | -6/Cetus | Allies destroyed Cetus Guard 14878 | -6/Cetus | Discovered new exit (range 15) 14882 | -6/Cetus | Met Revision 17 14889 | -6/Cetus | Manufactured an Enhanced Grunt 14914 | -6/Cetus | Manufactured an Enhanced Grunt 14939 | -6/Cetus | Manufactured an Enhanced Grunt 15053 | -6/Cetus | Entered Archives 15053 | -6/Archives | Accompanied by 12 allies (A7) 15066 | -6/Archives | Met Zhirov 15072 | -6/Archives | Reinforcements dispatched to Archives 15072 | -6/Archives | Unable to access archive contents 15082 | -6/Archives | Unable to access archive contents 15092 | -6/Archives | Read partially decrypted archive contents 15115 | -6/Archives | Zhirov warped through subspace 15119 | -6/Archives | Discovered new exit (range 13) 15126 | -6/Archives | Lost 3 allies 15133 | -6/Archives | Zhirov detonated Archives 15164 | -6/Archives | Lost 8 allies 15283 | -6/Archives | Discovered new exit (range 15) 15312 | -6/Archives | Discovered new exit (range 16) 15422 | -6/Archives | Build established: Construct 18526 | -6/Archives | Entered Hub_04(d) 18570 | -6/Hub_04(d) | Discovered new exit (range 14) 18570 | -6/Hub_04(d) | Discovered new exit (range 20) 18720 | -6/Hub_04(d) | Discovered new exit (range 6) 18999 | -6/Hub_04(d) | Network Hub disabled 19013 | -6/Hub_04(d) | Entered Factory 19013 | -5/Factory | Evolved 2 slots: Power x1, Weapon x1 19068 | -5/Factory | Sucked down chute 19068 | -5/Factory | Entered Waste 19068 | -5/Waste | The area was eerily silent 19188 | -5/Waste | A Compactor rumbled back to life 19190 | -5/Waste | Spotted C-40 Crusher 19224 | -5/Waste | Destroyed C-40 Crusher 19278 | -5/Waste | Discovered new exit (range 15) 19669 | -5/Waste | Entered Factory 19930 | -5/Factory | Destroyed 13 combat bots 19951 | -5/Factory | Found Prototype Processor 19951 | -5/Factory | Identified Exp. Targeting Computer 19979 | -5/Factory | Found Exp. Targeting Computer 19982 | -5/Factory | Found Exp. Targeting Computer 20020 | -5/Factory | Identified exit to Upper Caves 20369 | -5/Factory | Garrison activated, responded to threat 20395 | -5/Factory | Entered Upper Caves 20424 | -5/Upper Caves | Identified exit to Upper Caves 22300 | -5/Upper Caves | Entered another Upper Caves area 22601 | -5/Upper Caves | Learned 4 Factory zone layouts 22761 | -5/Upper Caves | Attacked by a delusional Derelict stockpiling parts 22952 | -5/Upper Caves | Discovered new exit (range 4) 23475 | -5/Upper Caves | Discovered new exit (range 10) 23556 | -5/Upper Caves | Attracted the attention of an 0b10 outpost 23557 | -5/Upper Caves | Entered Zhirov 23557 | -5/Zhirov | Discovered new exit (range 3) 23609 | -5/Zhirov | Learned location of Quarantine (-3) 23609 | -5/Zhirov | Learned location of Testing (-2) 23609 | -5/Zhirov | Learned location of Command (-1) 23645 | -5/Zhirov | Found Alien Artifact 23662 | -5/Zhirov | Found Alien Artifact 23662 | -5/Zhirov | Identified Integrated Dissipator 23662 | -5/Zhirov | Installed Integrated Dissipator, increased core heat dissipation (+20) 23873 | -5/Zhirov | Entered Proximity Caves 24365 | -4/Proximity Caves | Found DCF Scrap (13 items) 24367 | -4/Proximity Caves | Learned Research terminal intel 24477 | -4/Proximity Caves | Attracted the attention of an 0b10 checkpoint 24482 | -4/Proximity Caves | Discovered new exit (range 5) 24709 | -4/Proximity Caves | Entered Factory 24709 | -4/Factory | Evolved 2 slots: Utility x2 24735 | -4/Factory | Identified exit to Upper Caves 25090 | -4/Factory | Found Prototype Processor 25425 | -4/Factory | Entered Upper Caves 25616 | -4/Upper Caves | Spotted B-86 Titan 25831 | -4/Upper Caves | Attracted the attention of an 0b10 checkpoint 25952 | -4/Upper Caves | Discovered new exit (range 20) 26043 | -4/Upper Caves | Entered another Upper Caves area 26044 | -4/Upper Caves | Identified exit to Warlord 26050 | -4/Upper Caves | Discovered new exit (range 15) 26116 | -4/Upper Caves | Encountered a Warlord checkpoint 26273 | -4/Upper Caves | Learned Research garrison access intel 26400 | -4/Upper Caves | Attracted the attention of an 0b10 checkpoint 26668 | -4/Upper Caves | Entered Warlord 26972 | -4/Warlord | Found Prototype Device 26972 | -4/Warlord | Identified Exp. Phase Shifter 26982 | -4/Warlord | Found Prototype Processor 26982 | -4/Warlord | Identified Exp. Armor Integrity Analyzer 26985 | -4/Warlord | Found Prototype Device 26985 | -4/Warlord | Identified System Purifier 27002 | -4/Warlord | Found Prototype Hackware 27092 | -4/Warlord | Build established: Commander-Construct 27103 | -4/Warlord | Met Warlord 27111 | -4/Warlord | Warlord's base attacked by MAIN.C 27210 | -4/Warlord | Found Prototype Energy Gun 27210 | -4/Warlord | Identified Vortex Shotgun 27214 | -4/Warlord | Found Prototype Energy Gun 27214 | -4/Warlord | Identified Vortex Rifle 27222 | -4/Warlord | Found Vortex Shotgun 27223 | -4/Warlord | Identified Exp. Terrain Scan Processor 27231 | -4/Warlord | Found Vortex Rifle 27362 | -4/Warlord | Warlord forces counterattacked 27370 | -4/Warlord | P-70 Sage assimilated allied DN-PHW(g) 27378 | -4/Warlord | P-70 Sage assimilated allied OR-ME2(g) 27434 | -4/Warlord | Lost 5 allies 27506 | -4/Warlord | Spotted Executioner 27513 | -4/Warlord | Spotted Executioner 27518 | -4/Warlord | Destroyed Executioner 27548 | -4/Warlord | Found Prototype Device 27548 | -4/Warlord | Identified Adv. Kinecellerator 27555 | -4/Warlord | Lost 7 allies 27578 | -4/Warlord | Discovered new exit (range 9) 27613 | -4/Warlord | Spotted Executioner 27613 | -4/Warlord | Spotted Executioner 27615 | -4/Warlord | Spotted Striker 27623 | -4/Warlord | Allies destroyed Executioner 27635 | -4/Warlord | Destroyed Striker 27639 | -4/Warlord | Destroyed Executioner 27672 | -4/Warlord | Found Prototype Processor 27673 | -4/Warlord | Lost 13 allies 27674 | -4/Warlord | Identified Exp. Core Analyzer 27712 | -4/Warlord | Spotted Striker 27724 | -4/Warlord | Entered Proximity Caves 27733 | -3/Proximity Caves | Spotter reported a threat 27791 | -3/Proximity Caves | Spotted B-86 Titan 27840 | -3/Proximity Caves | Destroyed 7 combat bots 27907 | -3/Proximity Caves | Discovered new exit (range 6) 27963 | -3/Proximity Caves | Entered Research 27963 | -3/Research | Evolved 2 slots: Utility x2 27964 | -3/Research | Identified exit to Armory 27965 | -3/Research | Loaded intel: 24 terminal locations 27966 | -3/Research | Loaded intel: 3 garrison access locations 28081 | -3/Research | Identified Ghost Barrier 28163 | -3/Research | Revision forces began assault on 0b10 28192 | -3/Research | Discovered new exit (range 20) 28268 | -3/Research | Identified exit to Research 28271 | -3/Research | Destroyed 8 combat bots 28368 | -3/Research | Identified exit to Quarantine 28424 | -3/Research | Found Gamma Bomb Array 28433 | -3/Research | Met up with Revision 17++ 28663 | -3/Research | Research terminal network offline 28693 | -3/Research | Spotted B-86 Titan 28707 | -3/Research | Found Prototype Hackware 28842 | -3/Research | Found Prototype Processor 28842 | -3/Research | Identified Spectral Analyzer 28962 | -3/Research | Build established: Construct 28979 | -3/Research | Entered Quarantine 29028 | -3/Quarantine | Found Alien Artifact 29116 | -3/Quarantine | Found Prototype Launcher 29116 | -3/Quarantine | Identified Adv. Micro-nuke Launcher 29132 | -3/Quarantine | Cryocooling Duct disabled 29147 | -3/Quarantine | Ambient heat levels rising (+20) 29147 | -3/Quarantine | Non-combat units ordered to evacuate 29179 | -3/Quarantine | Identified Exp. Hacking Suite 29583 | -3/Quarantine | Discovered exit to Research (range 3) 29639 | -3/Quarantine | Found Prototype Device 29641 | -3/Quarantine | Identified Exp. Thermal Shield 29695 | -3/Quarantine | System corruption reached 10% 29695 | -3/Quarantine | Entered Research 29695 | -2/Research | Accompanied by 1 ally 29695 | -2/Research | Warlord forces began assault on 0b10 29695 | -2/Research | Evolved 2 slots: Power x1, Propulsion x1 29750 | -2/Research | Found Quantum Capacitor 29805 | -2/Research | Research machine network offline 29808 | -2/Research | Met up with Warlord 29813 | -2/Research | Discovered new exit (range 23) 29840 | -2/Research | Lost 4 allies 29919 | -2/Research | Found Prototype Processor 29919 | -2/Research | Identified Exp. Signal Interpreter 29942 | -2/Research | Identified exit to Access 29960 | -2/Research | Found Exp. Signal Interpreter 29963 | -2/Research | Borebot progress halted 30225 | -2/Research | Spotted Executioner 30225 | -2/Research | Spotted Executioner 30264 | -2/Research | Borebot progress halted 30279 | -2/Research | Spotted Executioner 30280 | -2/Research | Spotted Executioner 30303 | -2/Research | Spotted Striker 30324 | -2/Research | Crushed by falling debris 30324 | -2/Research | System corruption reached 10% 30355 | -2/Research | Lost 3 parts (3u) 30388 | -2/Research | Met DD-05H 30716 | -2/Research | Spotted Executioner 30739 | -2/Research | Destroyed Executioner 30739 | -2/Research | Spotted Executioner 30792 | -2/Research | Destroyed Executioner 30821 | -2/Research | Found Exp. Core Analyzer 30837 | -2/Research | Borebot progress halted 30963 | -2/Research | Spotted Striker 30965 | -2/Research | Spotted Executioner 30994 | -2/Research | Destroyed Striker 31004 | -2/Research | Spotted B-90 Cyclops 31127 | -2/Research | Discovered exit to Access (range 14) 31198 | -2/Research | Given Cave Seal Controls access code 31207 | -2/Research | Spotted Executioner 31325 | -2/Research | Spotted Executioner 31349 | -2/Research | Found Prototype Launcher 31349 | -2/Research | Identified Point Singularity Launcher 31389 | -2/Research | Discovered exit to Access (range 14) 31413 | -2/Research | Discovered new exit (range 3) 31413 | -2/Research | Identified exit to Testing 31477 | -2/Research | Entered Testing 31485 | -2/Testing | Found Prototype Energy Gun 31485 | -2/Testing | Identified Tachyon Dispersion Ray 31576 | -2/Testing | Found Exp. Hacking Suite 31581 | -2/Testing | Garrison activated, responded to threat 31582 | -2/Testing | Found Prototype Device 31582 | -2/Testing | Identified Exp. EM Disruption Field 31597 | -2/Testing | Found Prototype Energy Cannon 31601 | -2/Testing | Found Prototype Energy Cannon 31788 | -2/Testing | Spotted PG-B1I3X20EU1 31818 | -2/Testing | Destroyed PG-B1I3X20EU1 31885 | -2/Testing | Found Prototype Hackware 31886 | -2/Testing | Destroyed 9 combat bots 31905 | -2/Testing | Spotted Superbehemoth 32080 | -2/Testing | Found Prototype Protection 32080 | -2/Testing | Identified Hvy. Regenerative Plating 32271 | -2/Testing | Found Prototype Energy Gun 32271 | -2/Testing | Identified Warp Gun 32371 | -2/Testing | Discovered exit to Access (range 10) 32434 | -2/Testing | Spotted Fortress 32472 | -2/Testing | Discovered new exit (range 6) 32472 | -2/Testing | Discovered new exit (range 6) 32475 | -2/Testing | Entered Protoforge 32507 | -2/Protoforge | Spotted B-90 Cyclops 32511 | -2/Protoforge | Destroyed B-90 Cyclops 32535 | -2/Protoforge | Spotted Hotshot 32535 | -2/Protoforge | Spotted Hotshot 32535 | -2/Protoforge | Spotted Hotshot 32595 | -2/Protoforge | Spotted Hotshot 32595 | -2/Protoforge | Spotted Hotshot 32595 | -2/Protoforge | Spotted Hotshot 32595 | -2/Protoforge | Spotted Hotshot 32595 | -2/Protoforge | Spotted Hotshot 32600 | -2/Protoforge | Destroyed Hotshot 32635 | -2/Protoforge | Destroyed Hotshot 32637 | -2/Protoforge | Destroyed Hotshot 32671 | -2/Protoforge | Destroyed Hotshot 32746 | -2/Protoforge | Spotted Overlord 32751 | -2/Protoforge | Destroyed Overlord 32753 | -2/Protoforge | Spotted Decapitator 32753 | -2/Protoforge | Spotted Decapitator 32754 | -2/Protoforge | Destroyed Decapitator 32755 | -2/Protoforge | Spotted Decapitator 32756 | -2/Protoforge | Destroyed Decapitator 32758 | -2/Protoforge | Spotted Decapitator 32759 | -2/Protoforge | Superfortress began startup sequence 32763 | -2/Protoforge | Destroyed Decapitator 32767 | -2/Protoforge | Destroyed Decapitator 32773 | -2/Protoforge | Found Prototype Device 32773 | -2/Protoforge | Identified Exp. Transmission Jammer 32778 | -2/Protoforge | Found Prototype Device 32778 | -2/Protoforge | Identified Exp. Remote Shield 32808 | -2/Protoforge | Destroyed Hotshot 32903 | -2/Protoforge | Identified System Mapper 32914 | -2/Protoforge | Spotted Hotshot 32914 | -2/Protoforge | Spotted Hotshot 32916 | -2/Protoforge | Spotted Hotshot 32918 | -2/Protoforge | Spotted Hotshot 32924 | -2/Protoforge | Destroyed Hotshot 32926 | -2/Protoforge | Destroyed Hotshot 32939 | -2/Protoforge | Identified Transdimensional Reconstructor 32941 | -2/Protoforge | Found Prototype Device 32944 | -2/Protoforge | Found Prototype Storage 32944 | -2/Protoforge | Identified Cep. NT7 Matterbank 32953 | -2/Protoforge | Destroyed Hotshot 32960 | -2/Protoforge | Destroyed Hotshot 32971 | -2/Protoforge | Found Cep. Rapid Grenade Launcher 32975 | -2/Protoforge | First assault squad dispatched 32983 | -2/Protoforge | Spotted Hotshot 32983 | -2/Protoforge | Spotted Hotshot 32984 | -2/Protoforge | Spotted Hotshot 32985 | -2/Protoforge | Destroyed Hotshot 32986 | -2/Protoforge | Spotted Hotshot 32997 | -2/Protoforge | Destroyed Hotshot 33010 | -2/Protoforge | Destroyed Hotshot 33014 | -2/Protoforge | Destroyed Hotshot 33018 | -2/Protoforge | Spotted Immortal 33018 | -2/Protoforge | Spotted Immortal 33030 | -2/Protoforge | Destroyed Immortal 33037 | -2/Protoforge | Destroyed Immortal 33039 | -2/Protoforge | Spotted Decapitator 33051 | -2/Protoforge | Destroyed Decapitator 33063 | -2/Protoforge | Found Cep. Antimissile System 33072 | -2/Protoforge | Destroyed 7 combat bots 33106 | -2/Protoforge | Spotted V782-f 33113 | -2/Protoforge | Destroyed V782-f 33117 | -2/Protoforge | Found Prototype Device 33117 | -2/Protoforge | Identified Thermal Barrier 33134 | -2/Protoforge | Found Cep. Antigrav Storage Unit 33150 | -2/Protoforge | Found Prototype Device 33150 | -2/Protoforge | Identified Cep. Matter Streamer 33155 | -2/Protoforge | Found Prototype Storage 33155 | -2/Protoforge | Identified Cep. Chromion Battery 33179 | -2/Protoforge | Build established: Infiltrator-Construct 33238 | -2/Protoforge | Destroyed 12 combat bots 33321 | -2/Protoforge | Identified Crosscalibrator 33333 | -2/Protoforge | Found Faulty Cep. Tiamat Rocket Array 33335 | -2/Protoforge | Spotted V671-c 33335 | -2/Protoforge | Spotted V472-q 33335 | -2/Protoforge | Spotted V165-f 33340 | -2/Protoforge | Spotted V838-q 33342 | -2/Protoforge | Found Faulty Cep. Tiamat Rocket Array 33393 | -2/Protoforge | Spotted Decapitator 33393 | -2/Protoforge | Spotted Decapitator 33393 | -2/Protoforge | Spotted Decapitator 33479 | -2/Protoforge | Spotted V872-p 33495 | -2/Protoforge | Spotted Decapitator 33495 | -2/Protoforge | Spotted Decapitator 33495 | -2/Protoforge | Spotted Decapitator 33495 | -2/Protoforge | Spotted Decapitator 33498 | -2/Protoforge | Destroyed Decapitator 33498 | -2/Protoforge | Destroyed Decapitator 33498 | -2/Protoforge | Destroyed Decapitator 33501 | -2/Protoforge | Destroyed Decapitator 33516 | -2/Protoforge | Found Exp. Force Field 33537 | -2/Protoforge | Found Cep. Energy Mantle 33547 | -2/Protoforge | Spotted V665-s 33601 | -2/Protoforge | Spotted Immortal 33601 | -2/Protoforge | Spotted Immortal 33636 | -2/Protoforge | Destroyed Immortal 33638 | -2/Protoforge | Spotted V812-k 33638 | -2/Protoforge | Spotted V225-g 33639 | -2/Protoforge | Spotted V095-r 33669 | -2/Protoforge | Destroyed Immortal 33684 | -2/Protoforge | Spotted V732-e 33687 | -2/Protoforge | Destroyed V732-e 33691 | -2/Protoforge | Found Prototype Ballistic Cannon 33691 | -2/Protoforge | Identified Cep. Miniperforator 33700 | -2/Protoforge | Found Cep. Plasma Driver 33771 | -2/Protoforge | Destroyed 7 combat bots 33776 | -2/Protoforge | Destroyed V095-r 33784 | -2/Protoforge | Destroyed V225-g 33786 | -2/Protoforge | Destroyed V812-k 33794 | -2/Protoforge | Found Prototype Device 33794 | -2/Protoforge | Identified Exp. Shock Absorption System 33997 | -2/Protoforge | Found Cep. Weapon Articulator 33999 | -2/Protoforge | Found Prototype Device 33999 | -2/Protoforge | Identified Cep. Networked Targeting System 34013 | -2/Protoforge | Found Cep. Weapon Articulator 34025 | -2/Protoforge | Spotted AP7-3 34029 | -2/Protoforge | Spotted AP7-3 34036 | -2/Protoforge | Destroyed AP7-3 34038 | -2/Protoforge | Destroyed AP7-3 34059 | -2/Protoforge | Found Prototype Energy Gun 34059 | -2/Protoforge | Identified Enh. Gamma Rifle 34075 | -2/Protoforge | Found Cep. Thermoelectric Network 34088 | -2/Protoforge | Found Faulty Cep. Cloak Mesh 34089 | -2/Protoforge | Found Cep. Cloak Mesh 34160 | -2/Protoforge | Found Cep. Dimensional Manipulator 34325 | -2/Protoforge | Build established: Construct 34443 | -2/Protoforge | Destroyed 12 combat bots 34514 | -2/Protoforge | Additional patrols dispatched to research labs 34553 | -2/Protoforge | Found Transdimensional Reconstructor 34570 | -2/Protoforge | Found Cep. Navigation Harness 34897 | -2/Protoforge | Destroyed 12 combat bots 35040 | -2/Protoforge | Spotted Striker 35041 | -2/Protoforge | Spotted Immortal 35042 | -2/Protoforge | Spotted Immortal 35043 | -2/Protoforge | Spotted Executioner 35050 | -2/Protoforge | High security lockdown imminent 35050 | -2/Protoforge | Destroyed Superfortress 35052 | -2/Protoforge | Destroyed Executioner 35057 | -2/Protoforge | Destroyed Striker 35073 | -2/Protoforge | Scanned by Researcher 35073 | -2/Protoforge | Destroyed Immortal 35075 | -2/Protoforge | Destroyed Immortal 35106 | -2/Protoforge | Destroyed 9 combat bots 35130 | -2/Protoforge | High security lockdown engaged 35319 | -2/Protoforge | Destroyed 12 combat bots 35386 | -2/Protoforge | Spotted Investigator 35386 | -2/Protoforge | Destroyed Investigator 35418 | -2/Protoforge | Destroyed 17 combat bots 35465 | -2/Protoforge | Discovered exit to Access (range 8) 35469 | -2/Protoforge | Entered Access 35469 | -1/Access | Evolved 2 slots: Utility x2 35508 | -1/Access | High security lockdown imminent 35588 | -1/Access | High security lockdown engaged 35641 | -1/Access | Destroyed 11 combat bots 35753 | -1/Access | Spotted B-99 Colossus 35758 | -1/Access | Destroyed B-99 Colossus 35759 | -1/Access | Spotted B-99 Colossus 35762 | -1/Access | Destroyed B-99 Colossus 35793 | -1/Access | Discovered new exit (range 3) 35796 | -1/Access | Entered Command 35919 | -1/Command | Spotted Combat Programmer 35921 | -1/Command | Spotted Combat Programmer 35932 | -1/Command | Destroyed Combat Programmer 35934 | -1/Command | Destroyed Combat Programmer 35936 | -1/Command | Spotted M Guard 35936 | -1/Command | Spotted M Guard 35941 | -1/Command | Destroyed M Guard 35953 | -1/Command | Destroyed M Guard 35953 | -1/Command | All MAIN.C guards destroyed 35994 | -1/Command | Met MAIN.C 36014 | -1/Command | 0b10 Conduit disabled 36016 | -1/Command | Destroyed MAIN.C Shell 36018 | -1/Command | MAIN.C activated Command garrisons 36038 | -1/Command | Destroyed MAIN.C 36043 | -1/Command | Identified Subatomic Replicator 36043 | -1/Command | Discovered new exit (range 39) 36043 | -1/Command | Discovered new exit (range 77) 36043 | -1/Command | Extracted map data and part IDs from MAIN.C's data core 36970 | -1/Command | Found Multirail 36972 | -1/Command | Found Multirail 41386 | -1/Command | Found Exp. Cloaking Device 41517 | -1/Command | Phase Generator disabled 41589 | -1/Command | Warped through subspace to slip node 41589 | -1/Command | Discovered new exit (range 4) 41593 | -1/Command | Entered Access_0 41594 | -1/Access_0 | Met Architect 41598 | -1/Access_0 | Destroyed A8 41607 | -1/Access_0 | Architect warped through subspace 41627 | -1/Access_0 | Subspace Access Node disabled 41639 | -1/Access_0 | Found Sigix Broadsword 41649 | -1/Access_0 | Architect warped through subspace 41691 | -1/Access_0 | Architect warped through subspace 41723 | -1/Access_0 | Architect warped through subspace 41773 | -1/Access_0 | Architect warped through subspace 41779 | -1/Access_0 | Found Exp. Weapon Cycler 41781 | -1/Access_0 | Found Exp. Phase Shifter 41802 | -1/Access_0 | Architect warped through subspace 41815 | -1/Access_0 | Subspace Access Node disabled 41830 | -1/Access_0 | Architect warped through subspace 41848 | -1/Access_0 | Architect warped through subspace 41870 | -1/Access_0 | Subspace Access Node disabled 41878 | -1/Access_0 | Architect warped through subspace 41915 | -1/Access_0 | Architect warped through subspace 41940 | -1/Access_0 | A6 warped into view 41953 | -1/Access_0 | Destroyed A6 41956 | -1/Access_0 | Architect warped through subspace 41994 | -1/Access_0 | Architect warped through subspace 42069 | -1/Access_0 | Architect warped through subspace 42090 | -1/Access_0 | Destroyed A2 42104 | -1/Access_0 | Extracted Singularity Gate Test 138-C access codes from A2's data core 42108 | -1/Access_0 | Architect warped through subspace 42110 | -1/Access_0 | Found Prototype Device 42110 | -1/Access_0 | Identified ST Field Compressor 42130 | -1/Access_0 | A5 warped into view 42153 | -1/Access_0 | Architect warped through subspace 42160 | -1/Access_0 | Destroyed A5 42183 | -1/Access_0 | Architect warped through subspace 42218 | -1/Access_0 | Architect warped through subspace 42253 | -1/Access_0 | Architect warped through subspace 42274 | -1/Access_0 | Architect warped through subspace 42297 | -1/Access_0 | Architect warped through subspace 42319 | -1/Access_0 | Architect warped through subspace 42344 | -1/Access_0 | Architect warped through subspace 42374 | -1/Access_0 | Architect warped through subspace 42403 | -1/Access_0 | Core integrity fell below 50% 42406 | -1/Access_0 | Architect warped through subspace 42440 | -1/Access_0 | Architect warped through subspace 42473 | -1/Access_0 | Architect warped through subspace 42495 | -1/Access_0 | Architect warped through subspace 42517 | -1/Access_0 | Architect warped through subspace 42520 | -1/Access_0 | Found Prototype Device 42546 | -1/Access_0 | Architect warped through subspace 42565 | -1/Access_0 | Architect warped through subspace 42588 | -1/Access_0 | Architect warped through subspace 42605 | -1/Access_0 | Architect warped through subspace 42625 | -1/Access_0 | Architect warped through subspace 42642 | -1/Access_0 | Destroyed 9 combat bots 42656 | -1/Access_0 | Architect warped through subspace 42657 | -1/Access_0 | Subspace Access Node disabled 42727 | -1/Access_0 | Core integrity fell below 20% 42805 | -1/Access_0 | Singularity Gate disabled 42882 | -1/Access_0 | Destroyed Architect 42893 | -1/Access_0 | A4 warped into view 42896 | -1/Access_0 | Singularity Gate disabled 42922 | -1/Access_0 | Destroyed A4 42942 | -1/Access_0 | Extracted unknown sensor trigger ID from Architect's data core 42948 | -1/Access_0 | Found Prototype Protection 42948 | -1/Access_0 | Identified Centrium Linked Plating 42964 | -1/Access_0 | Found Hpw. Transdimensional Reconstructor 42964 | -1/Access_0 | Warped through subspace to slip node 42964 | -1/Access_0 | Discovered new exit (range 8) 42971 | *** | Establishing 0b11! Last Messages --------------- 42915_ A4 knocked back. 42917_ HV Slug penetrates A4. 42917_ A4 knocked back. 42918_ Penetrated by Slug. 42920_ HV Slug penetrates Wall. 42920_ HV Slug penetrates A4. 42920_ Destroyed Hvy. Regenerative Plating. 42920_ A4 knocked back. 42922_ HV Slug penetrates A4. 42922_ Destroyed Adv. Phase Shifter. 42922_ A4: "A3 is going to put a massive hole in that core of yours. You won't even see it coming..." 42922_ A4 destroyed. 42942_ Acquired data core, extracted unknown sensor trigger ID. 42948_ Acquired Prototype Protection. 42948_ Identified Centrium Linked Plating. 42952_ Acquired 276 matter. 42964_ Acquired Hpw. Transdimensional Reconstructor. 42964_ Warped through subspace, drawn to slip node. 42964_ EXIT=FOUND Map ----- +----------------------------------------------------+ | | | | | | | | | | | | | | | | | | | | | | | | | | | | | | | | | ?????????????????????????????????????????????????? | | ?????????????????????????????????????????????????? | | ?????????????????????????????????????????????????? | | ?????????????????????????????????????????????????? | | ?????????????????????????????????????????????????? | | ?????????????????????????????????????????????????? | | ????????????????????????###??????????????????????? | | ???????????????????????## ##?????????????????????? | | ???????????????????????# #?????????????????????? | | ???????????????????????# @ #?????????????????????? | | ??????????????????????## #?????????????????????? | | ??????????????????????# #?????????????????????? | | ??????????????????????# ##?????????????????????? | | ??????????????????????## #?????????????????????? | | ??????????????????????# #?????????????????????? | | ??????????????????????# ##?????????????????????? | | ??????????????????????# ! #?????????????????????? | | ??????????????????????# ##?????????????????????? | | ??????????????????????## #??????????????????????? | | ???????????????????????####??????????????????????? | | ?????????????????????????????????????????????????? | | ?????????????????????????????????????????????????? | | ?????????????????????????????????????????????????? | | ?????????????????????????????????????????????????? | | ?????????????????????????????????????????????????? | | ?????????????????????????????????????????????????? | | ?????????????????????????????????????????????????? | | ?????????????????????????????????????????????????? | | ?????????????????????????????????????????????????? | | ?????????????????????????????????????????????????? | | ?????????????????????????????????????????????????? | | ?????????????????????????????????????????????????? | | ?????????????????????????????????????????????????? | | ?????????????????????????????????????????????????? | +----------------------------------------------------+ Best States ------------- Heat Dissipation 113 Coolant Potential 65 Energy Generation 86 Energy Capacity 4854 Matter Stores 300 Matter Capacity 800 Sight Range 24 Robot Scan Range 16 Terrain Scan Range 24 Terrain Scan Density 1010 Jamming Range 22 Cloak Strength 9 Additional Mass Support 30 Base Temperature (-) 150 Armor Coverage 1100 Resistance: KI 20 Point Defense Rating 480 Weapon Cycling 30 Phase Shifting 20 Evasion (%) 84 Targeting Accuracy 30 Core Analysis 8 Armor Integrity Analysis 50 Recoil Reduction 6 Kinecelleration 50 Offensive Hacking 16 Defensive Hacking 20 Item Schematics ----------------- Assault Drone Bay | -5/Zhirov | Free Exp. Heat Sink | -5/Zhirov | Free Exp. Optical Array | -5/Zhirov | Free Imp. Arc Thrower | -5/Zhirov | Free Vibroblade | -2/Protoforge | Archive Exp. Hacking Suite | -2/Protoforge | Archive Hds. Centrium Wheel | -2/Protoforge | Archive Exp. Thermal Defense Suite | -2/Protoforge | Archive Robot Schematics ------------------ A-27 Freighter | -2/Protoforge | Archive Fabricated ------------ Nothing Repaired ---------- Nothing Alien Tech Used ----------------- Integrated Dissipator Transdimensional Reconstructor High-powered Transdimensional Reconstructor Achievements -------------- None Challenges ------------ None Game ------ Seed HardenedPhasingLattice Manual? 0 Play Time 06:07:52 Cumulative 753.8 hours Start 2025.05.18 @ 22:56:51 End 2025.05.20 @ 19:15:14 Sessions 5 Manual Loads 0 Difficulty Rogue Special Mode None Game No. 248 Rogue 246 Adventurer 2 Explorer 0 Win Type 1 Total 44 Types 14/6/12/1/1/0/8/1/0/1 Lore% 95 Gallery% 93 Achievement% 82 Wizard Run 0 Options --------- Layout 0 ASCII 0 Keyboard 1 Movement Numpad Keybinds 0 Fullscreen 1 Font 24/Smallcaps Map View 76x50 Zoom Use 0% Tactical HUD 1 Map Filters NONE Filters NONE Steam 1 RUN: 4e7323b4-6480-45e6-bb97-0a04f7c38b98